Workbook

Sheet Läs mig!

Sheet Modellen
B2: INPUT | F2: CENTRALA RESULTAT
B3: MSR 2021 | C3: 2600 | D3: milj ton | F3: Totala utsläpp | H3: =C101 -> 28280.86538 | I3: milj ton
B4: TNAC 2021 | C4: 1579 | D4: milj ton | F4: Total tilldelning 2021- | H4: =SUM(C77:CF78) -> 26701.86538 | I4: milj rätter
B5: Auktion 2021 | C5: 1000 | D5: milj ton | F5: Utsläpp 2021 | H5: =C96 -> 1667.685392 | I5: milj ton
B6: Linjär reduktion | C6: 35 | D6: milj ton | F6: Total annullering | H6: =C103 -> 3418.174623 | I6: milj ton
B7: Gratistilldelning 2021 | C7: 900 | D7: milj ton | F7: Annullering 2023 | H7: =E81 -> 2632.054974 | I7: milj ton
B8: Linjär reduktion | C8: 32 | D8: milj ton/år | F8: Andel annullering 2023 | H8: =H7/H6 -> 0.7700177035
B9: BAU årliga utsläpp 2021 | C9: 2200 | D9: milj ton | F9: Pris 2021 | H9: =C18 -> 58.5546069 | I9: euro
B10: Minskar Linjärt | C10: 5 | D10: milj ton/år | F10: Max pris perioden | H10: =MAX(C89:CF89) -> 226.05 | I10: euro
B11: Minskar Procentuellt | C11: 0.02 | F11: Sista år TNAC > 833 | H11: =LOOKUP(1,C71:CF71,C72:CF72) -> 2029
B12: Använd linjär (1) el. proc (0) | C12: 1 | F12: Första år med nollutsläpp | H12: =LOOKUP(1,D95:CF95,D72:CF72) -> 2050
B13: Temp BAU-tillägg | C13: 0 | D13: milj ton/år | F13: Nuvärde kostnader | H13: =C91 -> 3660.955048 | I13: tusen euro
B14: From när? | C14: 2025 | F14: Beta ger S&SB´s mått: | H14: =1/$C$19 -> 9.090909091 | I14: mton/€
B15: Antal år | C15: 1 | F15: Priselacticitet 2021 | H15: =-(H14/C96)/(1/C18) -> -0.3191936625
B16: Prisbana | C16: 0.05
B17: Kalkylränta | C17: 0.05
B18: Pris 2021 | C18: 58.5546069 | D18: euro
B19: Betafaktor (1/priskänslighet) | C19: 0.11
B20: Engångsminskning | C20: 0.1 | D20: milj ton
B21: När? | C21: 2019
B22: Utsläppsbroms | C22: 0
B23: Till när? | C23: 2028
B24: Smart annul (ja / nej) | C24: ja
B25: Gräns TNAC om ja | C25: 800
B26: Switchar gamla (alla = 1) eller nya systemet (alla = 0)
B27: 12% inmatning från 2023? (Ja=1) | C27: 1
B28: Föreg. aukt (1) eller 400 i MSR (0) | C28: 1
B29: Gamla (1) eller 1096-band (0) | C29: 1
B31: Utsläppsrätter i TNAC respektive MSR (miljoner) | F31: Marginalkostnad för utsläppsminskning (euro) | K31: Utsläpp (miljoner ton) | P31: Tilldelning (miljoner)
D48: =D89/C89-1 -> 0.05 | E48: =E89/D89-1 -> 0.05 | F48: 0.05 | G48: 0.05 | H48: 0.05 | I48: 0.05 | J48: 0.05 | K48: 0.05 | L48: 0.05 | M48: 0.05 | N48: 0.05 | O48: 0.05 | P48: 0.05 | Q48: 0.05 | R48: 0.05 | S48: 0.05 | T48: 0.05 | U48: 0.05 | V48: 0.05 | W48: 0.05 | X48: 0.07991138042 | Y48: 0.09096505065 | Z48: 0.03725961538 | AA48: 0.0359212051 | AB48: 0.03467561521 | AC48: 0.03351351351 | AD48: 0.03242677824 | AE48: 0.031408308 | AF48: 0.009332023576 | AG48: -0.002433090024 | AH48: -0.00243902439 | AI48: -0.002444987775 | AJ48: -0.002450980392 | AK48: -0.002457002457 | AL48: -0.002463054187 | AM48: -0.002469135802 | AN48: -0.002475247525 | AO48: -0.002481389578 | AP48: -0.002487562189 | AQ48: -0.002493765586 | AR48: -0.0025 | AS48: -0.002506265664 | AT48: -0.002512562814 | AU48: -0.002518891688 | AV48: -0.002525252525 | AW48: -0.00253164557 | AX48: -0.002538071066 | AY48: -0.002544529262 | AZ48: -0.002551020408 | BA48: -0.002557544757 | BB48: -0.002564102564 | BC48: -0.002570694087 | BD48: -0.002577319588 | BE48: -0.002583979328 | BF48: -0.002590673575 | BG48: -0.002597402597 | BH48: -0.002604166667 | BI48: -0.002610966057 | BJ48: -0.002617801047 | BK48: -0.002624671916 | BL48: -0.002631578947 | BM48: -0.002638522427 | BN48: -0.002645502646 | BO48: -0.002652519894 | BP48: -0.002659574468 | BQ48: =BQ89/BP89-1 -> -0.002666666667 | BR48: -0.002673796791 | BS48: -0.002680965147 | BT48: -0.002688172043 | BU48: -0.00269541779 | BV48: -0.002702702703 | BW48: -0.0027100271 | BX48: -0.002717391304 | BY48: -0.00272479564 | BZ48: -0.002732240437 | CA48: -0.002739726027 | CB48: -0.002747252747 | CC48: -0.002754820937 | CD48: -0.002762430939 | CE48: -0.002770083102 | CF48: -0.002777777778
B49: TNAC | C49: 1579 | D49: 1434.482168 | E49: 1289.370724 | F49: 1145.14424 | G49: 1002.993237 | H49: 934.6177952 | I49: 905.0986849 | J49: 877.2036192 | K49: 851.0138001 | L49: 826.6144901
B50: År | C50: 2021 | D50: 2022 | E50: 2023 | F50: 2024 | G50: 2025 | H50: 2026 | I50: 2027 | J50: 2028 | K50: 2029 | L50: 2030 | M50: 2031 | N50: 2032 | O50: 2033 | P50: 2034 | Q50: 2035 | R50: 2036 | S50: 2037 | T50: 2038 | U50: 2039 | V50: 2040 | W50: 2041 | X50: 2042 | Y50: 2043 | Z50: 2044 | AA50: 2045 | AB50: 2046 | AC50: 2047 | AD50: 2048 | AE50: 2049 | AF50: 2050 | AG50: 2051 | AH50: 2052 | AI50: 2053 | AJ50: 2054 | AK50: 2055 | AL50: 2056 | AM50: 2057 | AN50: 2058 | AO50: 2059 | AP50: 2060 | AQ50: 2061 | AR50: 2062 | AS50: 2063 | AT50: 2064 | AU50: 2065 | AV50: 2066 | AW50: 2067 | AX50: 2068 | AY50: 2069 | AZ50: 2070 | BA50: 2071 | BB50: 2072 | BC50: 2073 | BD50: 2074 | BE50: 2075 | BF50: 2076 | BG50: 2077 | BH50: 2078 | BI50: 2079 | BJ50: 2080 | BK50: 2081 | BL50: 2082 | BM50: 2083 | BN50: 2084 | BO50: 2085 | BP50: 2086 | BQ50: 2087 | BR50: 2088 | BS50: 2089 | BT50: 2090 | BU50: 2091 | BV50: 2092 | BW50: 2093 | BX50: 2094 | BY50: 2095 | BZ50: 2096 | CA50: 2097 | CB50: 2098 | CC50: 2099 | CD50: 2100 | CE50: 2101 | CF50: 2102
B51: Inmatningstakt | C51: 0.24 | D51: 0.24 | E51: 0.24 | F51: =IF($C$27=1,0.12,0.24) -> 0.12 | G51: 0.12 | H51: 0.12 | I51: 0.12 | J51: 0.12 | K51: 0.12 | L51: 0.12 | M51: 0.12 | N51: 0.12 | O51: 0.12 | P51: 0.12 | Q51: 0.12 | R51: 0.12 | S51: 0.12 | T51: 0.12 | U51: 0.12 | V51: 0.12 | W51: 0.12 | X51: 0.12 | Y51: 0.12 | Z51: 0.12 | AA51: 0.12 | AB51: 0.12 | AC51: 0.12 | AD51: 0.12 | AE51: 0.12 | AF51: 0.12 | AG51: 0.12 | AH51: 0.12 | AI51: 0.12 | AJ51: 0.12 | AK51: 0.12 | AL51: =IF($C$27=1,0.12,0.24) -> 0.12 | AM51: 0.12 | AN51: 0.12 | AO51: 0.12 | AP51: 0.12 | AQ51: 0.12 | AR51: 0.12 | AS51: 0.12 | AT51: 0.12 | AU51: 0.12 | AV51: 0.12 | AW51: 0.12 | AX51: 0.12 | AY51: 0.12 | AZ51: 0.12 | BA51: 0.12 | BB51: 0.12 | BC51: 0.12 | BD51: 0.12 | BE51: 0.12 | BF51: 0.12 | BG51: 0.12 | BH51: 0.12 | BI51: 0.12 | BJ51: 0.12 | BK51: 0.12 | BL51: 0.12 | BM51: 0.12 | BN51: 0.12 | BO51: 0.12 | BP51: 0.12 | BQ51: 0.12 | BR51: =IF($C$27=1,0.12,0.24) -> 0.12 | BS51: 0.12 | BT51: 0.12 | BU51: 0.12 | BV51: 0.12 | BW51: 0.12 | BX51: 0.12 | BY51: 0.12 | BZ51: 0.12 | CA51: 0.12 | CB51: 0.12 | CC51: 0.12 | CD51: 0.12 | CE51: 0.12 | CF51: 0.12
B52: Temp BAU-tillägg | C52: =IF(AND(C50>=$C$14,C50<$C$14+$C$15),$C$13,0) -> 0 | D52: =IF(AND(D50>=$C$14,D50<$C$14+$C$15),$C$13,0) -> 0 | E52: 0 | F52: 0 | G52: 0 | H52: 0 | I52: 0 | J52: 0 | K52: 0 | L52: 0 | M52: 0 | N52: 0 | O52: 0 | P52: 0 | Q52: 0 | R52: 0 | S52: 0 | T52: 0 | U52: 0 | V52: 0 | W52: 0 | X52: 0 | Y52: 0 | Z52: 0 | AA52: 0 | AB52: 0 | AC52: 0 | AD52: 0 | AE52: 0 | AF52: 0 | AG52: 0 | AH52: 0 | AI52: 0 | AJ52: 0 | AK52: 0 | AL52: 0 | AM52: 0 | AN52: 0 | AO52: 0 | AP52: 0 | AQ52: 0 | AR52: 0 | AS52: 0 | AT52: 0 | AU52: 0 | AV52: 0 | AW52: 0 | AX52: 0 | AY52: 0 | AZ52: 0 | BA52: 0 | BB52: 0 | BC52: 0 | BD52: 0 | BE52: 0 | BF52: 0 | BG52: 0 | BH52: 0 | BI52: 0 | BJ52: 0 | BK52: 0 | BL52: 0 | BM52: 0 | BN52: 0 | BO52: 0 | BP52: =IF(AND(BP50>=$C$14,BP50<$C$14+$C$15),$C$13,0) -> 0 | BQ52: 0 | BR52: 0 | BS52: 0 | BT52: 0 | BU52: 0 | BV52: 0 | BW52: 0 | BX52: 0 | BY52: 0 | BZ52: 0 | CA52: 0 | CB52: 0 | CC52: 0 | CD52: 0 | CE52: 0 | CF52: 0
B53: BAU | C53: =$C$12*C55+(1-$C$12)*C54+C52 -> 2200 | D53: =$C$12*D55+(1-$C$12)*D54+D52 -> 2195 | E53: 2190 | F53: 2185 | G53: 2180 | H53: 2175 | I53: 2170 | J53: 2165 | K53: 2160 | L53: 2155 | M53: 2150 | N53: 2145 | O53: 2140 | P53: 2135 | Q53: 2130 | R53: 2125 | S53: 2120 | T53: 2115 | U53: 2110 | V53: 2105 | W53: 2100 | X53: 2095 | Y53: 2090 | Z53: 2085 | AA53: 2080 | AB53: 2075 | AC53: 2070 | AD53: 2065 | AE53: 2060 | AF53: 2055 | AG53: 2050 | AH53: 2045 | AI53: 2040 | AJ53: 2035 | AK53: 2030 | AL53: 2025 | AM53: 2020 | AN53: 2015 | AO53: 2010 | AP53: 2005 | AQ53: 2000 | AR53: 1995 | AS53: 1990 | AT53: 1985 | AU53: 1980 | AV53: 1975 | AW53: 1970 | AX53: 1965 | AY53: 1960 | AZ53: 1955 | BA53: 1950 | BB53: 1945 | BC53: 1940 | BD53: 1935 | BE53: 1930 | BF53: 1925 | BG53: 1920 | BH53: 1915 | BI53: 1910 | BJ53: 1905 | BK53: 1900 | BL53: 1895 | BM53: 1890 | BN53: 1885 | BO53: 1880 | BP53: =$C$12*BP55+(1-$C$12)*BP54+BP52 -> 1875 | BQ53: 1870 | BR53: 1865 | BS53: 1860 | BT53: 1855 | BU53: 1850 | BV53: 1845 | BW53: 1840 | BX53: 1835 | BY53: 1830 | BZ53: 1825 | CA53: 1820 | CB53: 1815 | CC53: 1810 | CD53: 1805 | CE53: 1800 | CF53: 1795
B54: BAU Procentuell | C54: =C9-C52 -> 2200 | D54: =MAX(C54*(1-$C$11)-D52,0) -> 2156 | E54: =MAX(D54*(1-$C$11)-E52,0) -> 2112.88 | F54: 2070.6224 | G54: 2029.209952 | H54: 1988.625753 | I54: 1948.853238 | J54: 1909.876173 | K54: 1871.67865 | L54: 1834.245077 | M54: 1797.560175 | N54: 1761.608972 | O54: 1726.376792 | P54: 1691.849256 | Q54: 1658.012271 | R54: 1624.852026 | S54: 1592.354985 | T54: 1560.507886 | U54: 1529.297728 | V54: 1498.711773 | W54: 1468.737538 | X54: 1439.362787 | Y54: 1410.575531 | Z54: 1382.364021 | AA54: 1354.71674 | AB54: 1327.622406 | AC54: 1301.069957 | AD54: 1275.048558 | AE54: 1249.547587 | AF54: 1224.556635 | AG54: 1200.065503 | AH54: 1176.064193 | AI54: 1152.542909 | AJ54: 1129.492051 | AK54: 1106.90221 | AL54: 1084.764165 | AM54: 1063.068882 | AN54: 1041.807504 | AO54: 1020.971354 | AP54: 1000.551927 | AQ54: 980.5408887 | AR54: 960.9300709 | AS54: 941.7114695 | AT54: 922.8772401 | AU54: 904.4196953 | AV54: 886.3313014 | AW54: 868.6046754 | AX54: 851.2325819 | AY54: 834.2079302 | AZ54: 817.5237716 | BA54: 801.1732962 | BB54: 785.1498303 | BC54: 769.4468337 | BD54: 754.057897 | BE54: 738.976739 | BF54: 724.1972043 | BG54: 709.7132602 | BH54: 695.518995 | BI54: 681.6086151 | BJ54: 667.9764428 | BK54: 654.6169139 | BL54: 641.5245756 | BM54: 628.6940841 | BN54: 616.1202024 | BO54: 603.7977984 | BP54: 591.7218424 | BQ54: =MAX(BP54*(1-$C$11)-BQ52,0) -> 579.8874056 | BR54: 568.2896575 | BS54: 556.9238643 | BT54: 545.785387 | BU54: 534.8696793 | BV54: 524.1722857 | BW54: 513.68884 | BX54: 503.4150632 | BY54: 493.3467619 | BZ54: 483.4798267 | CA54: 473.8102302 | CB54: 464.3340256 | CC54: 455.047345 | CD54: 445.9463981 | CE54: =MAX(CD54*(1-$C$11)-CE52,0) -> 437.0274702 | CF54: =MAX(CE54*(1-$C$11)-CF52,0) -> 428.2869208
B55: BAU linjär | C55: =C9 -> 2200 | D55: =MAX(C55-$C$10,0) -> 2195 | E55: =MAX(D55-$C$10,0) -> 2190 | F55: 2185 | G55: 2180 | H55: 2175 | I55: 2170 | J55: 2165 | K55: 2160 | L55: 2155 | M55: 2150 | N55: 2145 | O55: 2140 | P55: 2135 | Q55: 2130 | R55: 2125 | S55: 2120 | T55: 2115 | U55: 2110 | V55: 2105 | W55: 2100 | X55: 2095 | Y55: 2090 | Z55: 2085 | AA55: 2080 | AB55: 2075 | AC55: 2070 | AD55: 2065 | AE55: 2060 | AF55: 2055 | AG55: 2050 | AH55: 2045 | AI55: 2040 | AJ55: 2035 | AK55: 2030 | AL55: 2025 | AM55: 2020 | AN55: 2015 | AO55: 2010 | AP55: 2005 | AQ55: 2000 | AR55: 1995 | AS55: 1990 | AT55: 1985 | AU55: 1980 | AV55: 1975 | AW55: 1970 | AX55: 1965 | AY55: 1960 | AZ55: 1955 | BA55: 1950 | BB55: 1945 | BC55: 1940 | BD55: 1935 | BE55: 1930 | BF55: 1925 | BG55: 1920 | BH55: 1915 | BI55: 1910 | BJ55: 1905 | BK55: 1900 | BL55: 1895 | BM55: 1890 | BN55: 1885 | BO55: 1880 | BP55: 1875 | BQ55: =MAX(BP55-$C$10,0) -> 1870 | BR55: 1865 | BS55: 1860 | BT55: 1855 | BU55: 1850 | BV55: 1845 | BW55: 1840 | BX55: 1835 | BY55: 1830 | BZ55: 1825 | CA55: 1820 | CB55: 1815 | CC55: 1810 | CD55: 1805 | CE55: =MAX(CD55-$C$10,0) -> 1800 | CF55: =MAX(CE55-$C$10,0) -> 1795
B56: UTAN AUT ANULLERING | C56: Gamla utsläppsbromsen (direkt annullering)
C57: 2019 | D57: 2020 | E57: 2021 | F57: 2022 | G57: 2023 | H57: 2024 | I57: 2025 | J57: 2026 | K57: 2027 | L57: 2028 | M57: 2029 | N57: 2030 | O57: 2031 | P57: 2032 | Q57: 2033 | R57: 2034 | S57: 2035 | T57: 2036 | U57: 2037 | V57: 2038 | W57: 2039 | X57: 2040 | Y57: 2041 | Z57: 2042 | AA57: 2043 | AB57: 2044 | AC57: 2045 | AD57: 2046 | AE57: 2047 | AF57: 2048 | AG57: 2049 | AH57: 2050 | AI57: 2051 | AJ57: 2052 | AK57: 2053 | AL57: 2054 | AM57: 2055 | AN57: 2056 | AO57: 2057 | AP57: 2058 | AQ57: 2059 | AR57: 2060 | AS57: 2061 | AT57: 2062 | AU57: 2063 | AV57: 2064 | AW57: 2065 | AX57: 2066 | AY57: 2067 | AZ57: 2068 | BA57: 2069 | BB57: 2070 | BC57: 2071 | BD57: 2072 | BE57: 2073 | BF57: 2074 | BG57: 2075 | BH57: 2076 | BI57: 2077 | BJ57: 2078 | BK57: 2079 | BL57: 2080 | BM57: 2081 | BN57: 2082 | BO57: 2083 | BP57: 2084 | BQ57: 2085 | BR57: 2086 | BS57: 2087 | BT57: 2088 | BU57: 2089 | BV57: 2090 | BW57: 2091 | BX57: 2092 | BY57: 2093 | BZ57: 2094 | CA57: 2095 | CB57: 2096 | CC57: 2097 | CD57: 2098 | CE57: 2099 | CF57: 2100
B58: TNAC | C58: =$C$4 -> 1579 | D58: =IF(C58+C68+C66>0,C58+C68+C66,0) -> 0.04 | E58: =IF(D58+D68+D66>0,D58+D68+D66,0) -> 0 | F58: 0 | G58: 0 | H58: 0 | I58: 0 | J58: 0 | K58: 0 | L58: 0 | M58: =IF(L58+L68+L66>0,L58+L68+L66,0) -> 0 | N58: 0 | O58: 0 | P58: 0 | Q58: 0 | R58: =IF(Q58+Q68+Q66>0,Q58+Q68+Q66,0) -> 0 | S58: =IF(R58+R68+R66>0,R58+R68+R66,0) -> 0 | T58: 0 | U58: 0 | V58: 0 | W58: 0 | X58: 0 | Y58: 0 | Z58: 0 | AA58: 0 | AB58: 0 | AC58: 0 | AD58: 0 | AE58: 0 | AF58: 0 | AG58: 0 | AH58: 0 | AI58: 0 | AJ58: 0 | AK58: 0 | AL58: 0 | AM58: 0 | AN58: 0 | AO58: 0 | AP58: 0 | AQ58: 0 | AR58: 0 | AS58: 0 | AT58: 0 | AU58: 0 | AV58: 0 | AW58: 0 | AX58: 0 | AY58: 0 | AZ58: 0 | BA58: 0 | BB58: 0 | BC58: 0 | BD58: 0 | BE58: 0 | BF58: 0 | BG58: 0 | BH58: 0 | BI58: 0 | BJ58: 0 | BK58: 0 | BL58: 0 | BM58: 0 | BN58: 0 | BO58: 0 | BP58: 0 | BQ58: 0 | BR58: 0 | BS58: 0 | BT58: 0 | BU58: 0 | BV58: 0 | BW58: 0 | BX58: 0 | BY58: 0 | BZ58: 0 | CA58: 0 | CB58: 0 | CC58: 0 | CD58: 0 | CE58: =IF(CD58+CD68+CD66>0,CD58+CD68+CD66,0) -> 0 | CF58: =IF(CE58+CE68+CE66>0,CE58+CE68+CE66,0) -> 0
B59: Auktion0 | C59: =$C$5 -> 1000 | D59: =IF(C59-$C$6>0,C59-$C$6,0) -> 965 | E59: =IF(D59-$C$6>0,D59-$C$6,0) -> 930 | F59: 895 | G59: 860 | H59: 825 | I59: 790 | J59: 755 | K59: 720 | L59: 685 | M59: 650 | N59: 615 | O59: 580 | P59: 545 | Q59: 510 | R59: 475 | S59: 440 | T59: 405 | U59: 370 | V59: 335 | W59: 300 | X59: 265 | Y59: 230 | Z59: 195 | AA59: 160 | AB59: 125 | AC59: 90 | AD59: 55 | AE59: 20 | AF59: 0 | AG59: 0 | AH59: 0 | AI59: 0 | AJ59: 0 | AK59: 0 | AL59: 0 | AM59: 0 | AN59: 0 | AO59: 0 | AP59: 0 | AQ59: 0 | AR59: 0 | AS59: 0 | AT59: 0 | AU59: 0 | AV59: 0 | AW59: 0 | AX59: 0 | AY59: 0 | AZ59: 0 | BA59: 0 | BB59: 0 | BC59: 0 | BD59: 0 | BE59: 0 | BF59: 0 | BG59: 0 | BH59: 0 | BI59: 0 | BJ59: 0 | BK59: 0 | BL59: 0 | BM59: 0 | BN59: 0 | BO59: 0 | BP59: 0 | BQ59: =IF(BP59-$C$6>0,BP59-$C$6,0) -> 0 | BR59: 0 | BS59: 0 | BT59: 0 | BU59: 0 | BV59: 0 | BW59: 0 | BX59: 0 | BY59: 0 | BZ59: 0 | CA59: 0 | CB59: 0 | CC59: 0 | CD59: 0 | CE59: =IF(CD59-$C$6>0,CD59-$C$6,0) -> 0 | CF59: =IF(CE59-$C$6>0,CE59-$C$6,0) -> 0
B60: Aukt reduceras med | C60: =IF(C58>833,MIN(C$51*C58,C59),(IF(C58<=400,-100,0))) -> 378.96 | D60: =IF(D58>833,MIN(D$51*D58,D59),(IF(D58<=400,MAX(-100,-C62),0))) -> -100 | E60: =IF(E58>833,MIN(E$51*E58,E59),(IF(E58<=400,MAX(-100,-D62),0))) -> -100 | F60: -100 | G60: -100 | H60: -100 | I60: -100 | J60: -100 | K60: -100 | L60: -100 | M60: -100 | N60: -100 | O60: -100 | P60: -100 | Q60: -100 | R60: -100 | S60: -100 | T60: -100 | U60: -100 | V60: -100 | W60: -100 | X60: -100 | Y60: -100 | Z60: -100 | AA60: -100 | AB60: -100 | AC60: -100 | AD60: -100 | AE60: -100 | AF60: -100 | AG60: -78.96 | AH60: 0 | AI60: 0 | AJ60: 0 | AK60: 0 | AL60: 0 | AM60: 0 | AN60: 0 | AO60: 0 | AP60: 0 | AQ60: 0 | AR60: =IF(AR58>833,MIN(AR$51*AR58,AR59),(IF(AR58<=400,MAX(-100,-AQ62),0))) -> 0 | AS60: =IF(AS58>833,MIN(AS$51*AS58,AS59),(IF(AS58<=400,MAX(-100,-AR62),0))) -> 0 | AT60: =IF(AT58>833,MIN(AT$51*AT58,AT59),(IF(AT58<=400,MAX(-100,-AS62),0))) -> 0 | AU60: 0 | AV60: 0 | AW60: 0 | AX60: 0 | AY60: 0 | AZ60: 0 | BA60: 0 | BB60: 0 | BC60: 0 | BD60: 0 | BE60: 0 | BF60: 0 | BG60: 0 | BH60: 0 | BI60: 0 | BJ60: 0 | BK60: 0 | BL60: 0 | BM60: 0 | BN60: 0 | BO60: 0 | BP60: 0 | BQ60: 0 | BR60: 0 | BS60: 0 | BT60: 0 | BU60: 0 | BV60: 0 | BW60: 0 | BX60: 0 | BY60: 0 | BZ60: 0 | CA60: 0 | CB60: 0 | CC60: 0 | CD60: 0 | CE60: =IF(CE58>833,MIN(CE$51*CE58,CE59),(IF(CE58<=400,MAX(-100,-CD62),0))) -> 0 | CF60: =IF(CF58>833,MIN(CF$51*CF58,CF59),(IF(CF58<=400,MAX(-100,-CE62),0))) -> 0
B61: Faktisk auktion | C61: =C59-C60 -> 621.04 | D61: =D59-D60 -> 1065 | E61: =E59-E60 -> 1030 | F61: =F59-F60 -> 995 | G61: 960 | H61: 925 | I61: 890 | J61: 855 | K61: 820 | L61: 785 | M61: 750 | N61: 715 | O61: 680 | P61: 645 | Q61: 610 | R61: 575 | S61: 540 | T61: 505 | U61: 470 | V61: 435 | W61: 400 | X61: 365 | Y61: 330 | Z61: 295 | AA61: 260 | AB61: 225 | AC61: 190 | AD61: 155 | AE61: 120 | AF61: 100 | AG61: 78.96 | AH61: 0 | AI61: 0 | AJ61: 0 | AK61: 0 | AL61: 0 | AM61: 0 | AN61: 0 | AO61: 0 | AP61: 0 | AQ61: 0 | AR61: 0 | AS61: 0 | AT61: 0 | AU61: 0 | AV61: 0 | AW61: 0 | AX61: 0 | AY61: 0 | AZ61: 0 | BA61: 0 | BB61: 0 | BC61: 0 | BD61: 0 | BE61: 0 | BF61: 0 | BG61: 0 | BH61: 0 | BI61: 0 | BJ61: 0 | BK61: 0 | BL61: 0 | BM61: 0 | BN61: 0 | BO61: 0 | BP61: 0 | BQ61: 0 | BR61: =BR59-BR60 -> 0 | BS61: 0 | BT61: 0 | BU61: 0 | BV61: 0 | BW61: 0 | BX61: 0 | BY61: 0 | BZ61: 0 | CA61: 0 | CB61: 0 | CC61: 0 | CD61: 0 | CE61: =CE59-CE60 -> 0 | CF61: 0
B62: MSR | C62: =$C$3+C60 -> 2978.96 | D62: =C62+D60 -> 2878.96 | E62: =D62+E60 -> 2778.96 | F62: =E62+F60 -> 2678.96 | G62: 2578.96 | H62: 2478.96 | I62: 2378.96 | J62: 2278.96 | K62: 2178.96 | L62: 2078.96 | M62: 1978.96 | N62: 1878.96 | O62: 1778.96 | P62: 1678.96 | Q62: 1578.96 | R62: 1478.96 | S62: 1378.96 | T62: 1278.96 | U62: 1178.96 | V62: 1078.96 | W62: 978.96 | X62: 878.96 | Y62: 778.96 | Z62: 678.96 | AA62: 578.96 | AB62: 478.96 | AC62: 378.96 | AD62: 278.96 | AE62: 178.96 | AF62: 78.96 | AG62: 0 | AH62: 0 | AI62: 0 | AJ62: 0 | AK62: 0 | AL62: 0 | AM62: 0 | AN62: 0 | AO62: 0 | AP62: 0 | AQ62: 0 | AR62: 0 | AS62: 0 | AT62: 0 | AU62: 0 | AV62: 0 | AW62: 0 | AX62: 0 | AY62: 0 | AZ62: 0 | BA62: 0 | BB62: 0 | BC62: 0 | BD62: 0 | BE62: 0 | BF62: 0 | BG62: 0 | BH62: 0 | BI62: 0 | BJ62: 0 | BK62: 0 | BL62: 0 | BM62: 0 | BN62: 0 | BO62: 0 | BP62: 0 | BQ62: 0 | BR62: =BQ62+BR60 -> 0 | BS62: 0 | BT62: 0 | BU62: 0 | BV62: 0 | BW62: 0 | BX62: 0 | BY62: 0 | BZ62: 0 | CA62: 0 | CB62: 0 | CC62: 0 | CD62: 0 | CE62: =CD62+CE60 -> 0 | CF62: =CE62+CF60 -> 0
B64: Utsläpp | C64: =IF(C58>0,C53,C61) -> 2200 | D64: =IF(D61+D58-D66>D53,D53,D61+D58-D66) -> 1065.04 | E64: =IF(E61+E58>E53,E53,E61+E58) -> 1030 | F64: 995 | G64: 960 | H64: 925 | I64: 890 | J64: 855 | K64: 820 | L64: 785 | M64: 750 | N64: 715 | O64: 680 | P64: 645 | Q64: 610 | R64: 575 | S64: 540 | T64: 505 | U64: 470 | V64: 435 | W64: 400 | X64: 365 | Y64: 330 | Z64: 295 | AA64: 260 | AB64: 225 | AC64: 190 | AD64: 155 | AE64: 120 | AF64: 100 | AG64: 78.96 | AH64: 0 | AI64: 0 | AJ64: 0 | AK64: 0 | AL64: 0 | AM64: 0 | AN64: 0 | AO64: 0 | AP64: 0 | AQ64: 0 | AR64: 0 | AS64: 0 | AT64: 0 | AU64: 0 | AV64: 0 | AW64: 0 | AX64: 0 | AY64: 0 | AZ64: 0 | BA64: 0 | BB64: 0 | BC64: 0 | BD64: 0 | BE64: 0 | BF64: 0 | BG64: 0 | BH64: 0 | BI64: 0 | BJ64: 0 | BK64: 0 | BL64: 0 | BM64: 0 | BN64: 0 | BO64: 0 | BP64: 0 | BQ64: =IF(BQ61+BQ58>BQ53,BQ53,BQ61+BQ58) -> 0 | BR64: 0 | BS64: 0 | BT64: 0 | BU64: 0 | BV64: 0 | BW64: 0 | BX64: 0 | BY64: 0 | BZ64: 0 | CA64: 0 | CB64: 0 | CC64: 0 | CD64: 0 | CE64: =IF(CE61+CE58>CE53,CE53,CE61+CE58) -> 0 | CF64: 0
B65: Utsläppsbroms | C65: =IF(C$57<=$C$23,$C$22,0) -> 0 | D65: 0 | E65: 0 | F65: 0 | G65: 0 | H65: 0 | I65: 0 | J65: 0 | K65: 0 | L65: 0 | M65: 0 | N65: 0 | O65: 0 | P65: 0 | Q65: 0 | R65: 0 | S65: 0 | T65: 0 | U65: 0 | V65: 0 | W65: 0 | X65: 0 | Y65: 0 | Z65: 0 | AA65: 0 | AB65: 0 | AC65: 0 | AD65: 0 | AE65: 0 | AF65: 0 | AG65: 0 | AH65: 0 | AI65: =IF(AI$57<=$C$23,$C$22,0) -> 0 | AJ65: 0 | AK65: 0 | AL65: 0 | AM65: 0 | AN65: 0 | AO65: 0 | AP65: 0 | AQ65: 0 | AR65: 0 | AS65: 0 | AT65: 0 | AU65: 0 | AV65: 0 | AW65: 0 | AX65: 0 | AY65: 0 | AZ65: 0 | BA65: 0 | BB65: 0 | BC65: 0 | BD65: 0 | BE65: 0 | BF65: 0 | BG65: 0 | BH65: 0 | BI65: 0 | BJ65: 0 | BK65: 0 | BL65: 0 | BM65: 0 | BN65: 0 | BO65: =IF(BO$57<=$C$23,$C$22,0) -> 0 | BP65: 0 | BQ65: 0 | BR65: 0 | BS65: 0 | BT65: 0 | BU65: 0 | BV65: 0 | BW65: 0 | BX65: 0 | BY65: 0 | BZ65: 0 | CA65: 0 | CB65: 0 | CC65: 0 | CD65: 0 | CE65: 0 | CF65: 0
B66: Bank utsläppsbroms | C66: =C65-C67 -> 0 | D66: =D65-D67 -> 0 | E66: =E65-E67 -> 0 | F66: 0 | G66: 0 | H66: 0 | I66: 0 | J66: 0 | K66: 0 | L66: 0 | M66: 0 | N66: 0 | O66: 0 | P66: 0 | Q66: 0 | R66: 0 | S66: 0 | T66: 0 | U66: 0 | V66: 0 | W66: 0 | X66: 0 | Y66: 0 | Z66: 0 | AA66: 0 | AB66: 0 | AC66: 0 | AD66: 0 | AE66: 0 | AF66: 0 | AG66: 0 | AH66: 0 | AI66: 0 | AJ66: 0 | AK66: 0 | AL66: 0 | AM66: 0 | AN66: 0 | AO66: 0 | AP66: 0 | AQ66: 0 | AR66: 0 | AS66: 0 | AT66: 0 | AU66: 0 | AV66: 0 | AW66: 0 | AX66: 0 | AY66: 0 | AZ66: 0 | BA66: 0 | BB66: 0 | BC66: 0 | BD66: 0 | BE66: 0 | BF66: 0 | BG66: 0 | BH66: 0 | BI66: 0 | BJ66: 0 | BK66: 0 | BL66: 0 | BM66: 0 | BN66: 0 | BO66: 0 | BP66: 0 | BQ66: =BQ65-BQ67 -> 0 | BR66: 0 | BS66: 0 | BT66: 0 | BU66: 0 | BV66: 0 | BW66: 0 | BX66: 0 | BY66: 0 | BZ66: 0 | CA66: 0 | CB66: 0 | CC66: 0 | CD66: 0 | CE66: =CE65-CE67 -> 0 | CF66: 0
B67: Annul bank utsläppsbr | C67: =C65 -> 0 | D67: =D65 -> 0 | E67: =E65 -> 0 | F67: 0 | G67: 0 | H67: 0 | I67: 0 | J67: 0 | K67: 0 | L67: 0 | M67: 0 | N67: 0 | O67: 0 | P67: 0 | Q67: 0 | R67: 0 | S67: 0 | T67: 0 | U67: 0 | V67: 0 | W67: 0 | X67: 0 | Y67: 0 | Z67: 0 | AA67: 0 | AB67: 0 | AC67: 0 | AD67: 0 | AE67: 0 | AF67: 0 | AG67: 0 | AH67: 0 | AI67: 0 | AJ67: 0 | AK67: 0 | AL67: 0 | AM67: 0 | AN67: 0 | AO67: 0 | AP67: 0 | AQ67: 0 | AR67: 0 | AS67: 0 | AT67: 0 | AU67: 0 | AV67: 0 | AW67: 0 | AX67: 0 | AY67: 0 | AZ67: 0 | BA67: 0 | BB67: 0 | BC67: 0 | BD67: 0 | BE67: 0 | BF67: 0 | BG67: 0 | BH67: 0 | BI67: 0 | BJ67: 0 | BK67: 0 | BL67: 0 | BM67: 0 | BN67: 0 | BO67: 0 | BP67: 0 | BQ67: =BQ65 -> 0 | BR67: 0 | BS67: 0 | BT67: 0 | BU67: 0 | BV67: 0 | BW67: 0 | BX67: 0 | BY67: 0 | BZ67: 0 | CA67: 0 | CB67: 0 | CC67: 0 | CD67: 0 | CE67: =CE65 -> 0 | CF67: 0
B68: Att banka | C68: =C61-C64-C65 -> -1578.96 | D68: =D61-D64-D65 -> -0.04 | E68: 0 | F68: 0 | G68: 0 | H68: 0 | I68: 0 | J68: 0 | K68: 0 | L68: 0 | M68: 0 | N68: 0 | O68: 0 | P68: 0 | Q68: 0 | R68: 0 | S68: 0 | T68: 0 | U68: 0 | V68: 0 | W68: 0 | X68: 0 | Y68: 0 | Z68: 0 | AA68: 0 | AB68: 0 | AC68: 0 | AD68: 0 | AE68: 0 | AF68: 0 | AG68: 0 | AH68: 0 | AI68: 0 | AJ68: 0 | AK68: 0 | AL68: 0 | AM68: 0 | AN68: 0 | AO68: 0 | AP68: 0 | AQ68: 0 | AR68: 0 | AS68: 0 | AT68: 0 | AU68: 0 | AV68: 0 | AW68: 0 | AX68: 0 | AY68: 0 | AZ68: 0 | BA68: 0 | BB68: 0 | BC68: 0 | BD68: 0 | BE68: 0 | BF68: 0 | BG68: 0 | BH68: 0 | BI68: 0 | BJ68: 0 | BK68: 0 | BL68: 0 | BM68: 0 | BN68: 0 | BO68: 0 | BP68: =BP61-BP64-BP65 -> 0 | BQ68: 0 | BR68: 0 | BS68: 0 | BT68: 0 | BU68: 0 | BV68: 0 | BW68: 0 | BX68: 0 | BY68: 0 | BZ68: 0 | CA68: 0 | CB68: 0 | CC68: 0 | CD68: 0 | CE68: =CE61-CE64-CE65 -> 0 | CF68: 0
B69: Totala utsläpp | C69: =SUM(C64:CD64) -> 18969
B70: MAC för nollutsläpp | C70: =$C$19*C53 -> 242 | D70: =$C$19*D53 -> 241.45 | E70: 240.9 | F70: 240.35 | G70: 239.8 | H70: 239.25 | I70: 238.7 | J70: 238.15 | K70: 237.6 | L70: 237.05 | M70: 236.5 | N70: 235.95 | O70: 235.4 | P70: 234.85 | Q70: 234.3 | R70: 233.75 | S70: 233.2 | T70: 232.65 | U70: 232.1 | V70: 231.55 | W70: 231 | X70: 230.45 | Y70: 229.9 | Z70: 229.35 | AA70: 228.8 | AB70: 228.25 | AC70: 227.7 | AD70: 227.15 | AE70: 226.6 | AF70: 226.05 | AG70: 225.5 | AH70: 224.95 | AI70: 224.4 | AJ70: 223.85 | AK70: 223.3 | AL70: 222.75 | AM70: 222.2 | AN70: 221.65 | AO70: 221.1 | AP70: 220.55 | AQ70: 220 | AR70: 219.45 | AS70: 218.9 | AT70: 218.35 | AU70: 217.8 | AV70: 217.25 | AW70: 216.7 | AX70: 216.15 | AY70: 215.6 | AZ70: 215.05 | BA70: 214.5 | BB70: 213.95 | BC70: 213.4 | BD70: 212.85 | BE70: 212.3 | BF70: 211.75 | BG70: 211.2 | BH70: 210.65 | BI70: 210.1 | BJ70: 209.55 | BK70: 209 | BL70: 208.45 | BM70: 207.9 | BN70: 207.35 | BO70: 206.8 | BP70: =$C$19*BP53 -> 206.25 | BQ70: 205.7 | BR70: 205.15 | BS70: 204.6 | BT70: 204.05 | BU70: 203.5 | BV70: 202.95 | BW70: 202.4 | BX70: 201.85 | BY70: 201.3 | BZ70: 200.75 | CA70: 200.2 | CB70: 199.65 | CC70: 199.1 | CD70: 198.55 | CE70: =$C$19*CE53 -> 198 | CF70: 197.45
C71: =IF(AND(C73>833,MAX(D73:$CF$73)<833),1,"") ->  | D71: =IF(AND(D73>833,MAX(E73:$CF$73)<833),1,"") ->  | E71: =IF(AND(E73>833,MAX(F73:$CF$73)<833),1,"") ->  | F71: =IF(AND(F73>833,MAX(G73:$CF$73)<833),1,"") ->  | G71: =IF(AND(G73>833,MAX(H73:$CF$73)<833),1,"") ->  | H71: =IF(AND(H73>833,MAX(I73:$CF$73)<833),1,"") ->  | I71: =IF(AND(I73>833,MAX(J73:$CF$73)<833),1,"") ->  | J71: =IF(AND(J73>833,MAX(K73:$CF$73)<833),1,"") ->  | K71: =IF(AND(K73>833,MAX(L73:$CF$73)<833),1,"") -> 1 | L71: =IF(AND(L73>833,MAX(M73:$CF$73)<833),1,"") ->  | M71: =IF(AND(M73>833,MAX(N73:$CF$73)<833),1,"") ->  | N71: =IF(AND(N73>833,MAX(O73:$CF$73)<833),1,"") ->  | O71: =IF(AND(O73>833,MAX(P73:$CF$73)<833),1,"") ->  | P71: =IF(AND(P73>833,MAX(Q73:$CF$73)<833),1,"") ->  | Q71: =IF(AND(Q73>833,MAX(R73:$CF$73)<833),1,"") ->  | R71: =IF(AND(R73>833,MAX(S73:$CF$73)<833),1,"") ->  | S71: =IF(AND(S73>833,MAX(T73:$CF$73)<833),1,"") ->  | T71: =IF(AND(T73>833,MAX(U73:$CF$73)<833),1,"") ->  | U71: =IF(AND(U73>833,MAX(V73:$CF$73)<833),1,"") ->  | V71: =IF(AND(V73>833,MAX(W73:$CF$73)<833),1,"") ->  | W71: =IF(AND(W73>833,MAX(X73:$CF$73)<833),1,"") ->  | X71: =IF(AND(X73>833,MAX(Y73:$CF$73)<833),1,"") ->  | Y71: =IF(AND(Y73>833,MAX(Z73:$CF$73)<833),1,"") ->  | Z71: =IF(AND(Z73>833,MAX(AA73:$CF$73)<833),1,"") ->  | AA71: =IF(AND(AA73>833,MAX(AB73:$CF$73)<833),1,"") ->  | AB71: =IF(AND(AB73>833,MAX(AC73:$CF$73)<833),1,"") ->  | AC71: =IF(AND(AC73>833,MAX(AD73:$CF$73)<833),1,"") ->  | AD71: =IF(AND(AD73>833,MAX(AE73:$CF$73)<833),1,"") ->  | AE71: =IF(AND(AE73>833,MAX(AF73:$CF$73)<833),1,"") ->  | AF71: =IF(AND(AF73>833,MAX(AG73:$CF$73)<833),1,"") ->  | AG71: =IF(AND(AG73>833,MAX(AH73:$CF$73)<833),1,"") ->  | AH71: =IF(AND(AH73>833,MAX(AI73:$CF$73)<833),1,"") ->  | AI71: =IF(AND(AI73>833,MAX(AJ73:$CF$73)<833),1,"") ->  | AJ71: =IF(AND(AJ73>833,MAX(AK73:$CF$73)<833),1,"") ->  | AK71: =IF(AND(AK73>833,MAX(AL73:$CF$73)<833),1,"") ->  | AL71: =IF(AND(AL73>833,MAX(AM73:$CF$73)<833),1,"") ->  | AM71: =IF(AND(AM73>833,MAX(AN73:$CF$73)<833),1,"") ->  | AN71: =IF(AND(AN73>833,MAX(AO73:$CF$73)<833),1,"") ->  | AO71: =IF(AND(AO73>833,MAX(AP73:$CF$73)<833),1,"") ->  | AP71: =IF(AND(AP73>833,MAX(AQ73:$CF$73)<833),1,"") ->  | AQ71: =IF(AND(AQ73>833,MAX(AR73:$CF$73)<833),1,"") ->  | AR71: =IF(AND(AR73>833,MAX(AS73:$CF$73)<833),1,"") ->  | AS71: =IF(AND(AS73>833,MAX(AT73:$CF$73)<833),1,"") ->  | AT71: =IF(AND(AT73>833,MAX(AU73:$CF$73)<833),1,"") ->  | AU71: =IF(AND(AU73>833,MAX(AV73:$CF$73)<833),1,"") ->  | AV71: =IF(AND(AV73>833,MAX(AW73:$CF$73)<833),1,"") ->  | AW71: =IF(AND(AW73>833,MAX(AX73:$CF$73)<833),1,"") ->  | AX71: =IF(AND(AX73>833,MAX(AY73:$CF$73)<833),1,"") ->  | AY71: =IF(AND(AY73>833,MAX(AZ73:$CF$73)<833),1,"") ->  | AZ71: =IF(AND(AZ73>833,MAX(BA73:$CF$73)<833),1,"") ->  | BA71: =IF(AND(BA73>833,MAX(BB73:$CF$73)<833),1,"") ->  | BB71: =IF(AND(BB73>833,MAX(BC73:$CF$73)<833),1,"") ->  | BC71: =IF(AND(BC73>833,MAX(BD73:$CF$73)<833),1,"") ->  | BD71: =IF(AND(BD73>833,MAX(BE73:$CF$73)<833),1,"") ->  | BE71: =IF(AND(BE73>833,MAX(BF73:$CF$73)<833),1,"") ->  | BF71: =IF(AND(BF73>833,MAX(BG73:$CF$73)<833),1,"") ->  | BG71: =IF(AND(BG73>833,MAX(BH73:$CF$73)<833),1,"") ->  | BH71: =IF(AND(BH73>833,MAX(BI73:$CF$73)<833),1,"") ->  | BI71: =IF(AND(BI73>833,MAX(BJ73:$CF$73)<833),1,"") ->  | BJ71: =IF(AND(BJ73>833,MAX(BK73:$CF$73)<833),1,"") ->  | BK71: =IF(AND(BK73>833,MAX(BL73:$CF$73)<833),1,"") ->  | BL71: =IF(AND(BL73>833,MAX(BM73:$CF$73)<833),1,"") ->  | BM71: =IF(AND(BM73>833,MAX(BN73:$CF$73)<833),1,"") ->  | BN71: =IF(AND(BN73>833,MAX(BO73:$CF$73)<833),1,"") ->  | BO71: =IF(AND(BO73>833,MAX(BP73:$CF$73)<833),1,"") ->  | BP71: =IF(AND(BP73>833,MAX(BQ73:$CF$73)<833),1,"") ->  | BQ71: =IF(AND(BQ73>833,MAX(BR73:$CF$73)<833),1,"") ->  | BR71: =IF(AND(BR73>833,MAX(BS73:$CF$73)<833),1,"") ->  | BS71: =IF(AND(BS73>833,MAX(BT73:$CF$73)<833),1,"") ->  | BT71: =IF(AND(BT73>833,MAX(BU73:$CF$73)<833),1,"") ->  | BU71: =IF(AND(BU73>833,MAX(BV73:$CF$73)<833),1,"") ->  | BV71: =IF(AND(BV73>833,MAX(BW73:$CF$73)<833),1,"") ->  | BW71: =IF(AND(BW73>833,MAX(BX73:$CF$73)<833),1,"") ->  | BX71: =IF(AND(BX73>833,MAX(BY73:$CF$73)<833),1,"") ->  | BY71: =IF(AND(BY73>833,MAX(BZ73:$CF$73)<833),1,"") ->  | BZ71: =IF(AND(BZ73>833,MAX(CA73:$CF$73)<833),1,"") ->  | CA71: =IF(AND(CA73>833,MAX(CB73:$CF$73)<833),1,"") ->  | CB71: =IF(AND(CB73>833,MAX(CC73:$CF$73)<833),1,"") ->  | CC71: =IF(AND(CC73>833,MAX(CD73:$CF$73)<833),1,"") ->  | CD71: =IF(AND(CD73>833,MAX(CE73:$CF$73)<833),1,"") ->  | CE71: =IF(AND(CE73>833,MAX(CF73:$CF$73)<833),1,"") ->  | CF71: =IF(AND(CF73>833,MAX($CF73:CG$73)<833),1,"") -> 
C72: =C50 -> 2021 | D72: =D50 -> 2022 | E72: =E50 -> 2023 | F72: =F50 -> 2024 | G72: =G50 -> 2025 | H72: 2026 | I72: 2027 | J72: 2028 | K72: 2029 | L72: 2030 | M72: 2031 | N72: 2032 | O72: 2033 | P72: 2034 | Q72: 2035 | R72: 2036 | S72: 2037 | T72: 2038 | U72: 2039 | V72: 2040 | W72: 2041 | X72: 2042 | Y72: 2043 | Z72: 2044 | AA72: 2045 | AB72: 2046 | AC72: 2047 | AD72: 2048 | AE72: 2049 | AF72: 2050 | AG72: 2051 | AH72: 2052 | AI72: 2053 | AJ72: 2054 | AK72: 2055 | AL72: 2056 | AM72: 2057 | AN72: 2058 | AO72: 2059 | AP72: 2060 | AQ72: 2061 | AR72: 2062 | AS72: 2063 | AT72: 2064 | AU72: 2065 | AV72: 2066 | AW72: 2067 | AX72: 2068 | AY72: 2069 | AZ72: 2070 | BA72: 2071 | BB72: 2072 | BC72: 2073 | BD72: 2074 | BE72: 2075 | BF72: 2076 | BG72: 2077 | BH72: 2078 | BI72: 2079 | BJ72: 2080 | BK72: 2081 | BL72: 2082 | BM72: 2083 | BN72: 2084 | BO72: 2085 | BP72: 2086 | BQ72: 2087 | BR72: 2088 | BS72: =BS50 -> 2089 | BT72: 2090 | BU72: 2091 | BV72: 2092 | BW72: 2093 | BX72: 2094 | BY72: 2095 | BZ72: 2096 | CA72: 2097 | CB72: 2098 | CC72: 2099 | CD72: 2100 | CE72: 2101 | CF72: 2102
B73: TNAC | C73: =$C$4 -> 1579 | D73: =C82-C96 -> 1432.354608 | E73: 1285.519841 | F73: 1139.871935 | G73: 1133.308001 | H73: 1096.342774 | I73: 1034.164961 | J73: 951.4176513 | K73: 852.2676433 | L73: 740.4666418 | M73: 708.2613132 | N73: 655.3457182 | O73: 583.7843434 | P73: 495.7448999 | Q73: 393.5034843 | R73: 379.4499978 | S73: 356.0938371 | T73: 326.0698683 | U73: 292.144701 | V73: 257.2232754 | W73: 204.3557785 | X73: 76.7449068 | Y73: 0 | Z73: 0 | AA73: 0 | AB73: 0 | AC73: 0 | AD73: 0 | AE73: 0 | AF73: 0 | AG73: 0 | AH73: 0 | AI73: 0 | AJ73: =AI82-AI96 -> 0 | AK73: 0 | AL73: 0 | AM73: 0 | AN73: 0 | AO73: 0 | AP73: 0 | AQ73: 0 | AR73: 0 | AS73: 0 | AT73: 0 | AU73: 0 | AV73: 0 | AW73: 0 | AX73: 0 | AY73: 0 | AZ73: 0 | BA73: 0 | BB73: 0 | BC73: 0 | BD73: 0 | BE73: 0 | BF73: 0 | BG73: 0 | BH73: 0 | BI73: 0 | BJ73: 0 | BK73: 0 | BL73: 0 | BM73: 0 | BN73: 0 | BO73: 0 | BP73: =BO82-BO96 -> 0 | BQ73: 0 | BR73: 0 | BS73: 0 | BT73: 0 | BU73: 0 | BV73: 0 | BW73: 0 | BX73: 0 | BY73: 0 | BZ73: 0 | CA73: 0 | CB73: 0 | CC73: 0 | CD73: 0 | CE73: 0 | CF73: 0
B74: Auktion0 | C74: =$C$5 -> 1000 | D74: =IF(C74-$C$6>0,C74-$C$6,0) -> 965 | E74: =IF(D74-$C$6>0,D74-$C$6,0) -> 930 | F74: 895 | G74: 860 | H74: 825 | I74: 790 | J74: 755 | K74: 720 | L74: 685 | M74: 650 | N74: 615 | O74: 580 | P74: 545 | Q74: 510 | R74: 475 | S74: 440 | T74: 405 | U74: 370 | V74: 335 | W74: 300 | X74: 265 | Y74: 230 | Z74: 195 | AA74: 160 | AB74: 125 | AC74: 90 | AD74: 55 | AE74: 20 | AF74: 0 | AG74: 0 | AH74: 0 | AI74: 0 | AJ74: 0 | AK74: 0 | AL74: 0 | AM74: 0 | AN74: 0 | AO74: 0 | AP74: 0 | AQ74: 0 | AR74: 0 | AS74: 0 | AT74: 0 | AU74: 0 | AV74: 0 | AW74: 0 | AX74: 0 | AY74: 0 | AZ74: 0 | BA74: 0 | BB74: 0 | BC74: 0 | BD74: 0 | BE74: 0 | BF74: 0 | BG74: 0 | BH74: 0 | BI74: 0 | BJ74: 0 | BK74: 0 | BL74: 0 | BM74: 0 | BN74: 0 | BO74: 0 | BP74: 0 | BQ74: =IF(BP74-$C$6>0,BP74-$C$6,0) -> 0 | BR74: 0 | BS74: 0 | BT74: 0 | BU74: 0 | BV74: 0 | BW74: 0 | BX74: 0 | BY74: 0 | BZ74: 0 | CA74: 0 | CB74: 0 | CC74: 0 | CD74: 0 | CE74: =IF(CD74-$C$6>0,CD74-$C$6,0) -> 0 | CF74: =IF(CE74-$C$6>0,CE74-$C$6,0) -> 0
B75: Original; Aukt reduceras med | C75: =IF(C73>=833,MIN(C$51*C73,C74),(IF(C73<=400,-100,0))) -> 378.96 | D75: =IF(D73>=833,MIN(D$51*D73,D74),(IF(D73<=400,MAX(-100,-C80),0))) -> 343.765106 | E75: =IF(E73>=833,MIN(E$51*E73,E74),(IF(E73<=400,MAX(-100,-D80),0))) -> 308.5247618 | F75: 136.7846321 | G75: 135.9969601 | H75: 131.5611329 | I75: 124.0997953 | J75: 114.1701182 | K75: 102.2721172 | L75: 0 | M75: 0 | N75: 0 | O75: 0 | P75: =IF(P73>=833,MIN(P$51*P73,P74),(IF(P73<=400,MAX(-100,-O80),0))) -> 0 | Q75: =IF(Q73>=833,MIN(Q$51*Q73,Q74),(IF(Q73<=400,MAX(-100,-P80),0))) -> -100 | R75: -100 | S75: =IF(S73>=833,MIN(S$51*S73,S74),(IF(S73<=400,MAX(-100,-R80),0))) -> -100 | T75: =IF(T73>=833,MIN(T$51*T73,T74),(IF(T73<=400,MAX(-100,-S80),0))) -> -100 | U75: =IF(U73>=833,MIN(U$51*U73,U74),(IF(U73<=400,MAX(-100,-T80),0))) -> -100 | V75: =IF(V73>=833,MIN(V$51*V73,V74),(IF(V73<=400,MAX(-100,-U80),0))) -> -80 | W75: =IF(W73>=833,MIN(W$51*W73,W74),(IF(W73<=400,MAX(-100,-V80),0))) -> 0 | X75: =IF(X73>=833,MIN(X$51*X73,X74),(IF(X73<=400,MAX(-100,-W80),0))) -> 0 | Y75: =IF(Y73>=833,MIN(Y$51*Y73,Y74),(IF(Y73<=400,MAX(-100,-X80),0))) -> 0 | Z75: =IF(Z73>=833,MIN(Z$51*Z73,Z74),(IF(Z73<=400,MAX(-100,-Y80),0))) -> 0 | AA75: =IF(AA73>=833,MIN(AA$51*AA73,AA74),(IF(AA73<=400,MAX(-100,-Z80),0))) -> 0 | AB75: =IF(AB73>=833,MIN(AB$51*AB73,AB74),(IF(AB73<=400,MAX(-100,-AA80),0))) -> 0 | AC75: =IF(AC73>=833,MIN(AC$51*AC73,AC74),(IF(AC73<=400,MAX(-100,-AB80),0))) -> 0 | AD75: 0 | AE75: =IF(AE73>=833,MIN(AE$51*AE73,AE74),(IF(AE73<=400,MAX(-100,-AD80),0))) -> 0 | AF75: 0 | AG75: =IF(AG73>=833,MIN(AG$51*AG73,AG74),(IF(AG73<=400,MAX(-100,-AF80),0))) -> 0 | AH75: =IF(AH73>=833,MIN(AH$51*AH73,AH74),(IF(AH73<=400,MAX(-100,-AG80),0))) -> 0 | AI75: =IF(AI73>=833,MIN(AI$51*AI73,AI74),(IF(AI73<=400,MAX(-100,-AH80),0))) -> 0 | AJ75: =IF(AJ73>=833,MIN(AJ$51*AJ73,AJ74),(IF(AJ73<=400,MAX(-100,-AI80),0))) -> 0 | AK75: =IF(AK73>=833,MIN(AK$51*AK73,AK74),(IF(AK73<=400,MAX(-100,-AJ80),0))) -> 0 | AL75: =IF(AL73>=833,MIN(AL$51*AL73,AL74),(IF(AL73<=400,MAX(-100,-AK80),0))) -> 0 | AM75: =IF(AM73>=833,MIN(AM$51*AM73,AM74),(IF(AM73<=400,MAX(-100,-AL80),0))) -> 0 | AN75: =IF(AN73>=833,MIN(AN$51*AN73,AN74),(IF(AN73<=400,MAX(-100,-AM80),0))) -> 0 | AO75: =IF(AO73>=833,MIN(AO$51*AO73,AO74),(IF(AO73<=400,MAX(-100,-AN80),0))) -> 0 | AP75: =IF(AP73>=833,MIN(AP$51*AP73,AP74),(IF(AP73<=400,MAX(-100,-AO80),0))) -> 0 | AQ75: =IF(AQ73>=833,MIN(AQ$51*AQ73,AQ74),(IF(AQ73<=400,MAX(-100,-AP80),0))) -> 0 | AR75: 0 | AS75: =IF(AS73>=833,MIN(AS$51*AS73,AS74),(IF(AS73<=400,MAX(-100,-AR80),0))) -> 0 | AT75: 0 | AU75: =IF(AU73>=833,MIN(AU$51*AU73,AU74),(IF(AU73<=400,MAX(-100,-AT80),0))) -> 0 | AV75: =IF(AV73>=833,MIN(AV$51*AV73,AV74),(IF(AV73<=400,MAX(-100,-AU80),0))) -> 0 | AW75: =IF(AW73>=833,MIN(AW$51*AW73,AW74),(IF(AW73<=400,MAX(-100,-AV80),0))) -> 0 | AX75: =IF(AX73>=833,MIN(AX$51*AX73,AX74),(IF(AX73<=400,MAX(-100,-AW80),0))) -> 0 | AY75: =IF(AY73>=833,MIN(AY$51*AY73,AY74),(IF(AY73<=400,MAX(-100,-AX80),0))) -> 0 | AZ75: =IF(AZ73>=833,MIN(AZ$51*AZ73,AZ74),(IF(AZ73<=400,MAX(-100,-AY80),0))) -> 0 | BA75: =IF(BA73>=833,MIN(BA$51*BA73,BA74),(IF(BA73<=400,MAX(-100,-AZ80),0))) -> 0 | BB75: =IF(BB73>=833,MIN(BB$51*BB73,BB74),(IF(BB73<=400,MAX(-100,-BA80),0))) -> 0 | BC75: =IF(BC73>=833,MIN(BC$51*BC73,BC74),(IF(BC73<=400,MAX(-100,-BB80),0))) -> 0 | BD75: =IF(BD73>=833,MIN(BD$51*BD73,BD74),(IF(BD73<=400,MAX(-100,-BC80),0))) -> 0 | BE75: =IF(BE73>=833,MIN(BE$51*BE73,BE74),(IF(BE73<=400,MAX(-100,-BD80),0))) -> 0 | BF75: 0 | BG75: =IF(BG73>=833,MIN(BG$51*BG73,BG74),(IF(BG73<=400,MAX(-100,-BF80),0))) -> 0 | BH75: 0 | BI75: =IF(BI73>=833,MIN(BI$51*BI73,BI74),(IF(BI73<=400,MAX(-100,-BH80),0))) -> 0 | BJ75: =IF(BJ73>=833,MIN(BJ$51*BJ73,BJ74),(IF(BJ73<=400,MAX(-100,-BI80),0))) -> 0 | BK75: =IF(BK73>=833,MIN(BK$51*BK73,BK74),(IF(BK73<=400,MAX(-100,-BJ80),0))) -> 0 | BL75: =IF(BL73>=833,MIN(BL$51*BL73,BL74),(IF(BL73<=400,MAX(-100,-BK80),0))) -> 0 | BM75: =IF(BM73>=833,MIN(BM$51*BM73,BM74),(IF(BM73<=400,MAX(-100,-BL80),0))) -> 0 | BN75: =IF(BN73>=833,MIN(BN$51*BN73,BN74),(IF(BN73<=400,MAX(-100,-BM80),0))) -> 0 | BO75: =IF(BO73>=833,MIN(BO$51*BO73,BO74),(IF(BO73<=400,MAX(-100,-BN80),0))) -> 0 | BP75: =IF(BP73>=833,MIN(BP$51*BP73,BP74),(IF(BP73<=400,MAX(-100,-BO80),0))) -> 0 | BQ75: =IF(BQ73>=833,MIN(BQ$51*BQ73,BQ74),(IF(BQ73<=400,MAX(-100,-BP80),0))) -> 0 | BR75: =IF(BR73>=833,MIN(BR$51*BR73,BR74),(IF(BR73<=400,MAX(-100,-BQ80),0))) -> 0 | BS75: =IF(BS73>=833,MIN(BS$51*BS73,BS74),(IF(BS73<=400,MAX(-100,-BR80),0))) -> 0 | BT75: 0 | BU75: =IF(BU73>=833,MIN(BU$51*BU73,BU74),(IF(BU73<=400,MAX(-100,-BT80),0))) -> 0 | BV75: 0 | BW75: =IF(BW73>=833,MIN(BW$51*BW73,BW74),(IF(BW73<=400,MAX(-100,-BV80),0))) -> 0 | BX75: =IF(BX73>=833,MIN(BX$51*BX73,BX74),(IF(BX73<=400,MAX(-100,-BW80),0))) -> 0 | BY75: =IF(BY73>=833,MIN(BY$51*BY73,BY74),(IF(BY73<=400,MAX(-100,-BX80),0))) -> 0 | BZ75: =IF(BZ73>=833,MIN(BZ$51*BZ73,BZ74),(IF(BZ73<=400,MAX(-100,-BY80),0))) -> 0 | CA75: =IF(CA73>=833,MIN(CA$51*CA73,CA74),(IF(CA73<=400,MAX(-100,-BZ80),0))) -> 0 | CB75: =IF(CB73>=833,MIN(CB$51*CB73,CB74),(IF(CB73<=400,MAX(-100,-CA80),0))) -> 0 | CC75: =IF(CC73>=833,MIN(CC$51*CC73,CC74),(IF(CC73<=400,MAX(-100,-CB80),0))) -> 0 | CD75: =IF(CD73>=833,MIN(CD$51*CD73,CD74),(IF(CD73<=400,MAX(-100,-CC80),0))) -> 0 | CE75: =IF(CE73>=833,MIN(CE$51*CE73,CE74),(IF(CE73<=400,MAX(-100,-CD80),0))) -> 0 | CF75: =IF(CF73>=833,MIN(CF$51*CF73,CF74),(IF(CF73<=400,MAX(-100,-CE80),0))) -> 0
B76: 1096-band; Aukt reudceras med | C76: =IF(AND(C73>=833,C73<=1096),C73-833,C75) -> 378.96 | D76: =IF(D73>1096,D73*D51,IF(AND(D73>=833,D73<=1096),D73-833,IF(D73<400,MAX(-100,-C80),0))) -> 343.765106 | E76: =IF(E73>1096,E73*E51,IF(AND(E73>=833,E73<=1096),E73-833,IF(E73<400,MAX(-100,-D80),0))) -> 308.5247618 | F76: 136.7846321 | G76: 135.9969601 | H76: 131.5611329 | I76: 201.1649608 | J76: 118.4176513 | K76: 19.2676433 | L76: 0 | M76: 0 | N76: 0 | O76: 0 | P76: 0 | Q76: -100 | R76: -100 | S76: -100 | T76: -100 | U76: -100 | V76: -80 | W76: 0 | X76: 0 | Y76: 0 | Z76: 0 | AA76: 0 | AB76: 0 | AC76: 0 | AD76: 0 | AE76: 0 | AF76: 0 | AG76: 0 | AH76: 0 | AI76: 0 | AJ76: 0 | AK76: 0 | AL76: 0 | AM76: 0 | AN76: 0 | AO76: 0 | AP76: 0 | AQ76: 0 | AR76: 0 | AS76: 0 | AT76: 0 | AU76: 0 | AV76: 0 | AW76: 0 | AX76: 0 | AY76: 0 | AZ76: 0 | BA76: 0 | BB76: 0 | BC76: 0 | BD76: 0 | BE76: 0 | BF76: 0 | BG76: 0 | BH76: 0 | BI76: 0 | BJ76: 0 | BK76: 0 | BL76: 0 | BM76: 0 | BN76: 0 | BO76: 0 | BP76: 0 | BQ76: =IF(BQ73>1096,BQ73*BQ51,IF(AND(BQ73>=833,BQ73<=1096),BQ73-833,IF(BQ73<400,MAX(-100,-BP80),0))) -> 0 | BR76: 0 | BS76: 0 | BT76: 0 | BU76: 0 | BV76: 0 | BW76: 0 | BX76: 0 | BY76: 0 | BZ76: 0 | CA76: 0 | CB76: 0 | CC76: 0 | CD76: 0 | CE76: 0 | CF76: 0
B77: Faktisk auktion | C77: =C74-($C$29*C75+(1-$C$29)*C76) -> 621.04 | D77: 621.234894 | E77: 621.4752382 | F77: 758.2153679 | G77: 724.0030399 | H77: 693.4388671 | I77: 665.9002047 | J77: 640.8298818 | K77: 617.7278828 | L77: 685 | M77: 650 | N77: 615 | O77: 580 | P77: 545 | Q77: 610 | R77: 575 | S77: 540 | T77: 505 | U77: 470 | V77: 415 | W77: 300 | X77: 265 | Y77: 230 | Z77: 195 | AA77: 160 | AB77: 125 | AC77: 90 | AD77: 55 | AE77: 20 | AF77: 0 | AG77: 0 | AH77: 0 | AI77: =AI74-($C$29*AI75+(1-$C$29)*AI76) -> 0 | AJ77: 0 | AK77: 0 | AL77: 0 | AM77: 0 | AN77: 0 | AO77: 0 | AP77: 0 | AQ77: 0 | AR77: 0 | AS77: 0 | AT77: 0 | AU77: 0 | AV77: 0 | AW77: 0 | AX77: 0 | AY77: 0 | AZ77: 0 | BA77: 0 | BB77: 0 | BC77: 0 | BD77: 0 | BE77: 0 | BF77: 0 | BG77: 0 | BH77: 0 | BI77: 0 | BJ77: 0 | BK77: 0 | BL77: 0 | BM77: 0 | BN77: 0 | BO77: =BO74-($C$29*BO75+(1-$C$29)*BO76) -> 0 | BP77: 0 | BQ77: 0 | BR77: 0 | BS77: 0 | BT77: 0 | BU77: 0 | BV77: 0 | BW77: 0 | BX77: 0 | BY77: 0 | BZ77: 0 | CA77: 0 | CB77: 0 | CC77: 0 | CD77: 0 | CE77: 0 | CF77: 0
B78: Gratistilldelning | C78: =C7 -> 900 | D78: =IF(C78-$C$8>0,C78-$C$8,0) -> 868 | E78: =IF(D78-$C$8>0,D78-$C$8,0) -> 836 | F78: 804 | G78: 772 | H78: 740 | I78: 708 | J78: 676 | K78: 644 | L78: 612 | M78: 580 | N78: 548 | O78: 516 | P78: 484 | Q78: 452 | R78: 420 | S78: 388 | T78: 356 | U78: 324 | V78: 292 | W78: 260 | X78: 228 | Y78: 196 | Z78: 164 | AA78: 132 | AB78: 100 | AC78: 68 | AD78: 36 | AE78: 4 | AF78: 0 | AG78: 0 | AH78: 0 | AI78: 0 | AJ78: 0 | AK78: 0 | AL78: 0 | AM78: 0 | AN78: 0 | AO78: 0 | AP78: 0 | AQ78: 0 | AR78: 0 | AS78: 0 | AT78: 0 | AU78: 0 | AV78: 0 | AW78: 0 | AX78: 0 | AY78: 0 | AZ78: 0 | BA78: 0 | BB78: 0 | BC78: 0 | BD78: 0 | BE78: 0 | BF78: 0 | BG78: 0 | BH78: 0 | BI78: 0 | BJ78: 0 | BK78: 0 | BL78: 0 | BM78: 0 | BN78: 0 | BO78: 0 | BP78: 0 | BQ78: =IF(BP78-$C$8>0,BP78-$C$8,0) -> 0 | BR78: 0 | BS78: 0 | BT78: 0 | BU78: 0 | BV78: 0 | BW78: 0 | BX78: 0 | BY78: 0 | BZ78: 0 | CA78: 0 | CB78: 0 | CC78: 0 | CD78: 0 | CE78: =IF(CD78-$C$8>0,CD78-$C$8,0) -> 0 | CF78: =IF(CE78-$C$8>0,CE78-$C$8,0) -> 0
B79: Max i MSR (aukt eller 400) | D79: =D77*$C$28+400*(1-$C$28) -> 621.234894 | E79: 621.4752382 | F79: 758.2153679 | G79: 724.0030399 | H79: 693.4388671 | I79: 665.9002047 | J79: 640.8298818 | K79: 617.7278828 | L79: 685 | M79: 650 | N79: 615 | O79: 580 | P79: 545 | Q79: 610 | R79: 575 | S79: 540 | T79: 505 | U79: 470 | V79: 415 | W79: 300 | X79: 265 | Y79: 230 | Z79: 195 | AA79: 160 | AB79: 125 | AC79: 90 | AD79: 55 | AE79: 20 | AF79: 0 | AG79: 0 | AH79: 0 | AI79: 0 | AJ79: =AJ77*$C$28+400*(1-$C$28) -> 0 | AK79: 0 | AL79: 0 | AM79: 0 | AN79: 0 | AO79: 0 | AP79: 0 | AQ79: 0 | AR79: 0 | AS79: 0 | AT79: 0 | AU79: 0 | AV79: 0 | AW79: 0 | AX79: 0 | AY79: 0 | AZ79: 0 | BA79: 0 | BB79: 0 | BC79: 0 | BD79: 0 | BE79: 0 | BF79: 0 | BG79: 0 | BH79: 0 | BI79: 0 | BJ79: 0 | BK79: 0 | BL79: 0 | BM79: 0 | BN79: 0 | BO79: 0 | BP79: =BP77*$C$28+400*(1-$C$28) -> 0 | BQ79: 0 | BR79: 0 | BS79: 0 | BT79: 0 | BU79: 0 | BV79: 0 | BW79: 0 | BX79: 0 | BY79: 0 | BZ79: 0 | CA79: 0 | CB79: 0 | CC79: 0 | CD79: 0 | CE79: 0 | CF79: 0
B80: MSR | C80: =$C$3+(C75*$C$29+(1-C76)*$C$29) -> 2601 | D80: =C80+($C$29*D75+(1-$C$29)*D76) -> 2944.765106 | E80: =IF(D80+($C$29*E75+(1-$C$29)*E76)>D79,D79,D80+($C$29*E75+(1-$C$29)*E76)) -> 621.234894 | F80: 621.4752382 | G80: 757.4721983 | H80: 724.0030399 | I80: 693.4388671 | J80: 665.9002047 | K80: 640.8298818 | L80: 617.7278828 | M80: 617.7278828 | N80: 617.7278828 | O80: 615 | P80: 580 | Q80: 480 | R80: 380 | S80: 280 | T80: 180 | U80: 80 | V80: 0 | W80: 0 | X80: 0 | Y80: 0 | Z80: 0 | AA80: 0 | AB80: 0 | AC80: 0 | AD80: 0 | AE80: 0 | AF80: 0 | AG80: 0 | AH80: 0 | AI80: 0 | AJ80: 0 | AK80: =IF(AJ80+($C$29*AK75+(1-$C$29)*AK76)>AJ79,AJ79,AJ80+($C$29*AK75+(1-$C$29)*AK76)) -> 0 | AL80: 0 | AM80: 0 | AN80: 0 | AO80: 0 | AP80: 0 | AQ80: 0 | AR80: 0 | AS80: 0 | AT80: 0 | AU80: 0 | AV80: 0 | AW80: 0 | AX80: 0 | AY80: 0 | AZ80: 0 | BA80: 0 | BB80: 0 | BC80: 0 | BD80: 0 | BE80: 0 | BF80: 0 | BG80: 0 | BH80: 0 | BI80: 0 | BJ80: 0 | BK80: 0 | BL80: 0 | BM80: 0 | BN80: 0 | BO80: 0 | BP80: 0 | BQ80: =IF(BP80+($C$29*BQ75+(1-$C$29)*BQ76)>BP79,BP79,BP80+($C$29*BQ75+(1-$C$29)*BQ76)) -> 0 | BR80: 0 | BS80: 0 | BT80: 0 | BU80: 0 | BV80: 0 | BW80: 0 | BX80: 0 | BY80: 0 | BZ80: 0 | CA80: 0 | CB80: 0 | CC80: 0 | CD80: 0 | CE80: 0 | CF80: 0
B81: Antal annullering | E81: =D80+($C$29*E75+(1-$C$29)*E76)-E80 -> 2632.054974 | F81: =E80+($C$29*F75+(1-$C$29)*F76)-F80 -> 136.544288 | G81: =F80+($C$29*G75+(1-$C$29)*G76)-G80 -> 0 | H81: 165.0302912 | I81: 154.6639681 | J81: =I80+($C$29*J75+(1-$C$29)*J76)-J80 -> 141.7087806 | K81: =J80+($C$29*K75+(1-$C$29)*K76)-K80 -> 127.3424401 | L81: 23.10199904 | M81: =L80+($C$29*M75+(1-$C$29)*M76)-M80 -> 0 | N81: =M80+($C$29*N75+(1-$C$29)*N76)-N80 -> 0 | O81: 2.727882804 | P81: =O80+($C$29*P75+(1-$C$29)*P76)-P80 -> 35 | Q81: =P80+($C$29*Q75+(1-$C$29)*Q76)-Q80 -> 0 | R81: 0 | S81: =R80+($C$29*S75+(1-$C$29)*S76)-S80 -> 0 | T81: =S80+($C$29*T75+(1-$C$29)*T76)-T80 -> 0 | U81: 0 | V81: =U80+($C$29*V75+(1-$C$29)*V76)-V80 -> 0 | W81: =V80+($C$29*W75+(1-$C$29)*W76)-W80 -> 0 | X81: 0 | Y81: =X80+($C$29*Y75+(1-$C$29)*Y76)-Y80 -> 0 | Z81: =Y80+($C$29*Z75+(1-$C$29)*Z76)-Z80 -> 0 | AA81: 0 | AB81: =AA80+($C$29*AB75+(1-$C$29)*AB76)-AB80 -> 0 | AC81: =AB80+($C$29*AC75+(1-$C$29)*AC76)-AC80 -> 0 | AD81: 0 | AE81: =AD80+($C$29*AE75+(1-$C$29)*AE76)-AE80 -> 0 | AF81: =AE80+($C$29*AF75+(1-$C$29)*AF76)-AF80 -> 0 | AG81: 0 | AH81: =AG80+($C$29*AH75+(1-$C$29)*AH76)-AH80 -> 0 | AI81: =AH80+($C$29*AI75+(1-$C$29)*AI76)-AI80 -> 0 | AJ81: 0 | AK81: =AJ80+($C$29*AK75+(1-$C$29)*AK76)-AK80 -> 0 | AL81: =AK80+($C$29*AL75+(1-$C$29)*AL76)-AL80 -> 0 | AM81: 0 | AN81: =AM80+($C$29*AN75+(1-$C$29)*AN76)-AN80 -> 0 | AO81: =AN80+($C$29*AO75+(1-$C$29)*AO76)-AO80 -> 0 | AP81: 0 | AQ81: =AP80+($C$29*AQ75+(1-$C$29)*AQ76)-AQ80 -> 0 | AR81: =AQ80+($C$29*AR75+(1-$C$29)*AR76)-AR80 -> 0 | AS81: 0 | AT81: =AS80+($C$29*AT75+(1-$C$29)*AT76)-AT80 -> 0 | AU81: =AT80+($C$29*AU75+(1-$C$29)*AU76)-AU80 -> 0 | AV81: 0 | AW81: =AV80+($C$29*AW75+(1-$C$29)*AW76)-AW80 -> 0 | AX81: =AW80+($C$29*AX75+(1-$C$29)*AX76)-AX80 -> 0 | AY81: 0 | AZ81: =AY80+($C$29*AZ75+(1-$C$29)*AZ76)-AZ80 -> 0 | BA81: =AZ80+($C$29*BA75+(1-$C$29)*BA76)-BA80 -> 0 | BB81: 0 | BC81: =BB80+($C$29*BC75+(1-$C$29)*BC76)-BC80 -> 0 | BD81: =BC80+($C$29*BD75+(1-$C$29)*BD76)-BD80 -> 0 | BE81: 0 | BF81: =BE80+($C$29*BF75+(1-$C$29)*BF76)-BF80 -> 0 | BG81: =BF80+($C$29*BG75+(1-$C$29)*BG76)-BG80 -> 0 | BH81: 0 | BI81: =BH80+($C$29*BI75+(1-$C$29)*BI76)-BI80 -> 0 | BJ81: =BI80+($C$29*BJ75+(1-$C$29)*BJ76)-BJ80 -> 0 | BK81: 0 | BL81: =BK80+($C$29*BL75+(1-$C$29)*BL76)-BL80 -> 0 | BM81: =BL80+($C$29*BM75+(1-$C$29)*BM76)-BM80 -> 0 | BN81: 0 | BO81: =BN80+($C$29*BO75+(1-$C$29)*BO76)-BO80 -> 0 | BP81: =BO80+($C$29*BP75+(1-$C$29)*BP76)-BP80 -> 0 | BQ81: 0 | BR81: =BQ80+($C$29*BR75+(1-$C$29)*BR76)-BR80 -> 0 | BS81: =BR80+($C$29*BS75+(1-$C$29)*BS76)-BS80 -> 0 | BT81: 0 | BU81: =BT80+($C$29*BU75+(1-$C$29)*BU76)-BU80 -> 0 | BV81: =BU80+($C$29*BV75+(1-$C$29)*BV76)-BV80 -> 0 | BW81: 0 | BX81: =BW80+($C$29*BX75+(1-$C$29)*BX76)-BX80 -> 0 | BY81: =BX80+($C$29*BY75+(1-$C$29)*BY76)-BY80 -> 0 | BZ81: 0 | CA81: =BZ80+($C$29*CA75+(1-$C$29)*CA76)-CA80 -> 0 | CB81: =CA80+($C$29*CB75+(1-$C$29)*CB76)-CB80 -> 0 | CC81: 0 | CD81: =CC80+($C$29*CD75+(1-$C$29)*CD76)-CD80 -> 0 | CE81: =CD80+($C$29*CE75+(1-$C$29)*CE76)-CE80 -> 0 | CF81: 0
B82: Tillgängliga utsläppsrätter | C82: =C73+C77+C78 -> 3100.04 | D82: =D73+D77+D78 -> 2921.589502 | E82: 2742.995079 | F82: 2702.087302 | G82: =G73+G77+G78 -> 2629.311041 | H82: 2529.781641 | I82: 2408.065165 | J82: 2268.247533 | K82: 2113.995526 | L82: 2037.466642 | M82: 1938.261313 | N82: 1818.345718 | O82: 1679.784343 | P82: 1524.7449 | Q82: 1455.503484 | R82: 1374.449998 | S82: 1284.093837 | T82: 1187.069868 | U82: 1086.144701 | V82: 964.2232754 | W82: 764.3557785 | X82: 569.7449068 | Y82: 426 | Z82: 359 | AA82: 292 | AB82: 225 | AC82: 158 | AD82: 91 | AE82: 24 | AF82: 0 | AG82: 0 | AH82: 0 | AI82: 0 | AJ82: 0 | AK82: 0 | AL82: 0 | AM82: 0 | AN82: 0 | AO82: 0 | AP82: 0 | AQ82: 0 | AR82: 0 | AS82: 0 | AT82: 0 | AU82: 0 | AV82: 0 | AW82: 0 | AX82: 0 | AY82: 0 | AZ82: 0 | BA82: 0 | BB82: 0 | BC82: 0 | BD82: 0 | BE82: 0 | BF82: 0 | BG82: 0 | BH82: 0 | BI82: 0 | BJ82: 0 | BK82: 0 | BL82: 0 | BM82: 0 | BN82: 0 | BO82: 0 | BP82: =BP73+BP77+BP78 -> 0 | BQ82: 0 | BR82: 0 | BS82: 0 | BT82: 0 | BU82: 0 | BV82: 0 | BW82: 0 | BX82: 0 | BY82: 0 | BZ82: 0 | CA82: 0 | CB82: 0 | CC82: 0 | CD82: 0 | CE82: 0 | CF82: 0
C83: 0
B84: Utsläppsrättspris (bana) | C84: =C18 -> 58.5546069 | D84: =C84*(1+$C$16) -> 61.48233724 | E84: =D84*(1+$C$16) -> 64.55645411 | F84: 67.78427681 | G84: 71.17349065 | H84: 74.73216518 | I84: 78.46877344 | J84: 82.39221212 | K84: 86.51182272 | L84: 90.83741386 | M84: 95.37928455 | N84: 100.1482488 | O84: 105.1556612 | P84: 110.4134443 | Q84: 115.9341165 | R84: 121.7308223 | S84: 127.8173634 | T84: 134.2082316 | U84: 140.9186432 | V84: 147.9645753 | W84: 155.3628041 | X84: 163.1309443 | Y84: 171.2874915 | Z84: 179.8518661 | AA84: 188.8444594 | AB84: 198.2866824 | AC84: 208.2010165 | AD84: 218.6110673 | AE84: 229.5416207 | AF84: 241.0187017 | AG84: 253.0696368 | AH84: 265.7231187 | AI84: =AH84*(1+$C$16) -> 279.0092746 | AJ84: =AI84*(1+$C$16) -> 292.9597383 | AK84: =AJ84*(1+$C$16) -> 307.6077252 | AL84: =AK84*(1+$C$16) -> 322.9881115 | AM84: =AL84*(1+$C$16) -> 339.1375171 | AN84: =AM84*(1+$C$16) -> 356.0943929 | AO84: =AN84*(1+$C$16) -> 373.8991126 | AP84: =AO84*(1+$C$16) -> 392.5940682 | AQ84: =AP84*(1+$C$16) -> 412.2237716 | AR84: =AQ84*(1+$C$16) -> 432.8349602 | AS84: 454.4767082 | AT84: 477.2005436 | AU84: 501.0605708 | AV84: 526.1135993 | AW84: 552.4192793 | AX84: 580.0402433 | AY84: 609.0422554 | AZ84: 639.4943682 | BA84: 671.4690866 | BB84: 705.0425409 | BC84: 740.294668 | BD84: 777.3094014 | BE84: 816.1748714 | BF84: 856.983615 | BG84: 899.8327958 | BH84: 944.8244356 | BI84: 992.0656573 | BJ84: 1041.66894 | BK84: 1093.752387 | BL84: 1148.440007 | BM84: 1205.862007 | BN84: 1266.155107 | BO84: 1329.462863 | BP84: 1395.936006 | BQ84: =BP84*(1+$C$16) -> 1465.732806 | BR84: 1539.019446 | BS84: 1615.970419 | BT84: 1696.76894 | BU84: 1781.607387 | BV84: 1870.687756 | BW84: 1964.222144 | BX84: 2062.433251 | BY84: 2165.554913 | BZ84: 2273.832659 | CA84: 2387.524292 | CB84: 2506.900507 | CC84: 2632.245532 | CD84: 2763.857809 | CE84: =CD84*(1+$C$16) -> 2902.050699 | CF84: =CE84*(1+$C$16) -> 3047.153234
B85: Önskade utsläpp (givet priset) | C85: =MAX(0,C53-C84/$C$19,C86*C87) -> 1667.685392 | D85: =MAX(0,D53-D84/$C$19,D86*D87) -> 1636.069661 | E85: 1603.123144 | F85: 1568.779302 | G85: 1532.968267 | H85: 1495.61668 | I85: 1456.647514 | J85: 1415.97989 | K85: 1373.528884 | L85: 1329.205329 | M85: 1282.915595 | N85: 1234.561375 | O85: 1184.039443 | P85: 1131.241416 | Q85: 1076.053486 | R85: 1018.356161 | S85: 958.0239688 | T85: 894.9251672 | U85: 828.9214256 | V85: 759.8674969 | W85: 687.6108717 | X85: 611.9914153 | Y85: 532.8409861 | Z85: 449.9830354 | AA85: 363.2321872 | AB85: 272.3937965 | AC85: 177.2634863 | AD85: 91 | AE85: 24 | AF85: 0 | AG85: 0 | AH85: 0 | AI85: =MAX(0,AI53-AI84/$C$19,AI86*AI87) -> 0 | AJ85: 0 | AK85: 0 | AL85: 0 | AM85: 0 | AN85: 0 | AO85: 0 | AP85: 0 | AQ85: 0 | AR85: 0 | AS85: 0 | AT85: 0 | AU85: 0 | AV85: 0 | AW85: 0 | AX85: 0 | AY85: 0 | AZ85: 0 | BA85: 0 | BB85: 0 | BC85: 0 | BD85: 0 | BE85: 0 | BF85: 0 | BG85: 0 | BH85: 0 | BI85: 0 | BJ85: 0 | BK85: 0 | BL85: 0 | BM85: 0 | BN85: 0 | BO85: =MAX(0,BO53-BO84/$C$19,BO86*BO87) -> 0 | BP85: 0 | BQ85: 0 | BR85: 0 | BS85: 0 | BT85: 0 | BU85: 0 | BV85: 0 | BW85: 0 | BX85: 0 | BY85: 0 | BZ85: 0 | CA85: 0 | CB85: 0 | CC85: 0 | CD85: 0 | CE85: 0 | CF85: 0
B86: Har TNAC varit noll? | C86: 0 | D86: =IF(D73<1,1,C86) -> 0 | E86: 0 | F86: 0 | G86: 0 | H86: 0 | I86: 0 | J86: 0 | K86: 0 | L86: 0 | M86: 0 | N86: 0 | O86: 0 | P86: 0 | Q86: 0 | R86: 0 | S86: 0 | T86: 0 | U86: 0 | V86: 0 | W86: 0 | X86: 0 | Y86: 1 | Z86: 1 | AA86: 1 | AB86: 1 | AC86: 1 | AD86: 1 | AE86: 1 | AF86: 1 | AG86: 1 | AH86: 1 | AI86: 1 | AJ86: =IF(AJ73<1,1,AI86) -> 1 | AK86: 1 | AL86: 1 | AM86: 1 | AN86: 1 | AO86: 1 | AP86: 1 | AQ86: 1 | AR86: 1 | AS86: 1 | AT86: 1 | AU86: 1 | AV86: 1 | AW86: 1 | AX86: 1 | AY86: 1 | AZ86: 1 | BA86: 1 | BB86: 1 | BC86: 1 | BD86: 1 | BE86: 1 | BF86: 1 | BG86: 1 | BH86: 1 | BI86: 1 | BJ86: 1 | BK86: 1 | BL86: 1 | BM86: 1 | BN86: 1 | BO86: 1 | BP86: =IF(BP73<1,1,BO86) -> 1 | BQ86: 1 | BR86: 1 | BS86: 1 | BT86: 1 | BU86: 1 | BV86: 1 | BW86: 1 | BX86: 1 | BY86: 1 | BZ86: 1 | CA86: 1 | CB86: 1 | CC86: 1 | CD86: 1 | CE86: 1 | CF86: 1
B87: Bana när TNAC noll | C87: =C77+C78 -> 1521.04 | D87: =D77+D78 -> 1489.234894 | E87: 1457.475238 | F87: 1562.215368 | G87: 1496.00304 | H87: 1433.438867 | I87: 1373.900205 | J87: 1316.829882 | K87: 1261.727883 | L87: 1297 | M87: 1230 | N87: 1163 | O87: 1096 | P87: 1029 | Q87: 1062 | R87: 995 | S87: 928 | T87: 861 | U87: 794 | V87: 707 | W87: 560 | X87: 493 | Y87: 426 | Z87: 359 | AA87: 292 | AB87: 225 | AC87: 158 | AD87: 91 | AE87: 24 | AF87: 0 | AG87: 0 | AH87: 0 | AI87: 0 | AJ87: 0 | AK87: 0 | AL87: 0 | AM87: 0 | AN87: 0 | AO87: 0 | AP87: 0 | AQ87: 0 | AR87: 0 | AS87: 0 | AT87: 0 | AU87: 0 | AV87: 0 | AW87: 0 | AX87: 0 | AY87: 0 | AZ87: 0 | BA87: 0 | BB87: 0 | BC87: 0 | BD87: 0 | BE87: 0 | BF87: 0 | BG87: 0 | BH87: 0 | BI87: 0 | BJ87: 0 | BK87: 0 | BL87: 0 | BM87: 0 | BN87: 0 | BO87: 0 | BP87: =BP77+BP78 -> 0 | BQ87: 0 | BR87: 0 | BS87: 0 | BT87: 0 | BU87: 0 | BV87: 0 | BW87: 0 | BX87: 0 | BY87: 0 | BZ87: 0 | CA87: 0 | CB87: 0 | CC87: 0 | CD87: 0 | CE87: 0 | CF87: 0
B88: Tot Abatement Cost | C88: =$C$19*(C53-C96)^2/2 -> 15584.73631 | D88: =$C$19*(D53-D96)^2/2 -> 17182.17179 | E88: 18943.34439 | F88: 20885.03719 | G88: 23025.75351 | H88: 25385.89324 | I88: 27987.9473 | J88: 30856.7119 | K88: 34019.52487 | L88: 37506.52616 | M88: 41350.9451 | N88: 45589.41697 | O88: 50262.33221 | P88: 55414.22126 | Q88: 61094.17894 | R88: 67356.33228 | S88: 74260.35634 | T88: 81872.04286 | U88: 90263.92726 | V88: 99515.9798 | W88: 109716.3677 | X88: 127952.1705 | Y88: 152289.28 | Z88: 163849.18 | AA88: 175831.92 | AB88: 188237.5 | AC88: 201065.92 | AD88: 214317.18 | AE88: 227991.28 | AF88: 232266.375 | AG88: 231137.5 | AH88: 230011.375 | AI88: =$C$19*(AI53-AI96)^2/2 -> 228888 | AJ88: 227767.375 | AK88: 226649.5 | AL88: 225534.375 | AM88: 224422 | AN88: 223312.375 | AO88: 222205.5 | AP88: 221101.375 | AQ88: 220000 | AR88: 218901.375 | AS88: 217805.5 | AT88: 216712.375 | AU88: 215622 | AV88: 214534.375 | AW88: 213449.5 | AX88: 212367.375 | AY88: 211288 | AZ88: 210211.375 | BA88: 209137.5 | BB88: 208066.375 | BC88: 206998 | BD88: 205932.375 | BE88: 204869.5 | BF88: 203809.375 | BG88: 202752 | BH88: 201697.375 | BI88: 200645.5 | BJ88: 199596.375 | BK88: 198550 | BL88: 197506.375 | BM88: 196465.5 | BN88: 195427.375 | BO88: =$C$19*(BO53-BO96)^2/2 -> 194392 | BP88: 193359.375 | BQ88: 192329.5 | BR88: 191302.375 | BS88: 190278 | BT88: 189256.375 | BU88: 188237.5 | BV88: 187221.375 | BW88: 186208 | BX88: 185197.375 | BY88: 184189.5 | BZ88: 183184.375 | CA88: 182182 | CB88: 181182.375 | CC88: 180185.5 | CD88: 179191.375 | CE88: 178200 | CF88: 177211.375
B89: MAC | C89: =$C$19*(C53-C96) -> 58.5546069 | D89: 61.48233724 | E89: 64.55645411 | F89: 67.78427681 | G89: 71.17349065 | H89: 74.73216518 | I89: 78.46877344 | J89: 82.39221212 | K89: 86.51182272 | L89: 90.83741386 | M89: 95.37928455 | N89: 100.1482488 | O89: 105.1556612 | P89: 110.4134443 | Q89: 115.9341165 | R89: 121.7308223 | S89: 127.8173634 | T89: 134.2082316 | U89: 140.9186432 | V89: 147.9645753 | W89: 155.3628041 | X89: 167.7780603 | Y89: 183.04 | Z89: 189.86 | AA89: 196.68 | AB89: 203.5 | AC89: 210.32 | AD89: 217.14 | AE89: 223.96 | AF89: 226.05 | AG89: 225.5 | AH89: 224.95 | AI89: =$C$19*(AI53-AI96) -> 224.4 | AJ89: 223.85 | AK89: 223.3 | AL89: 222.75 | AM89: 222.2 | AN89: 221.65 | AO89: 221.1 | AP89: 220.55 | AQ89: 220 | AR89: 219.45 | AS89: 218.9 | AT89: 218.35 | AU89: 217.8 | AV89: 217.25 | AW89: 216.7 | AX89: 216.15 | AY89: 215.6 | AZ89: 215.05 | BA89: 214.5 | BB89: 213.95 | BC89: 213.4 | BD89: 212.85 | BE89: 212.3 | BF89: 211.75 | BG89: 211.2 | BH89: 210.65 | BI89: 210.1 | BJ89: 209.55 | BK89: 209 | BL89: 208.45 | BM89: 207.9 | BN89: 207.35 | BO89: =$C$19*(BO53-BO96) -> 206.8 | BP89: 206.25 | BQ89: 205.7 | BR89: 205.15 | BS89: 204.6 | BT89: 204.05 | BU89: 203.5 | BV89: 202.95 | BW89: 202.4 | BX89: 201.85 | BY89: 201.3 | BZ89: 200.75 | CA89: 200.2 | CB89: 199.65 | CC89: 199.1 | CD89: 198.55 | CE89: 198 | CF89: 197.45
B90: Discounted TAC+rättskostn | C90: =(C88+C96*MIN(C84,C89))/((1+$C$17)^(C72-2021)) -> 113235.3989 | D90: =(D88+D96*MIN(D84,D89))/((1+$C$17)^(D72-2021)) -> 112163.389 | E90: 111052.4173 | F90: 109900.5357 | G90: 108705.6986 | H90: 107465.7584 | I90: 106178.4598 | J90: 104841.4349 | K90: 103452.1974 | L90: 102008.1367 | M90: 100506.5116 | N90: 98944.44389 | O90: 97318.91146 | P90: 95626.74106 | Q90: 93864.6008 | R90: 92028.99217 | S90: 90116.24176 | T90: 88122.49248 | U90: 86043.69439 | V90: 83875.59505 | W90: 81613.72939 | X90: 79288.64368 | Y90: 77004.33327 | Z90: 74365.69536 | AA90: 71617.78121 | AB90: 68761.84204 | AC90: 65799.555 | AD90: 62697.10954 | AE90: 59530.26336 | AF90: 56428.26132 | AG90: 53480.00504 | AH90: 50685.18582 | AI90: 48035.84714 | AJ90: 45524.44368 | AK90: 43143.82016 | AL90: 40887.1912 | AM90: 38748.1223 | AN90: 36720.51173 | AO90: 34798.57337 | AP90: 32976.82045 | AQ90: 31250.05011 | AR90: 29613.32873 | AS90: 28061.9781 | AT90: 26591.56218 | AU90: 25197.87464 | AV90: 23876.92698 | AW90: 22624.93731 | AX90: 21438.31968 | AY90: 20313.67392 | AZ90: 19247.77612 | BA90: 18237.56945 | BB90: 17280.15558 | BC90: 16372.78646 | BD90: 15512.85659 | BE90: 14697.89558 | BF90: 13925.56127 | BG90: 13193.63299 | BH90: 12500.00536 | BI90: 11842.68228 | BJ90: 11219.7713 | BK90: 10629.47824 | BL90: 10070.10212 | BM90: 9540.030332 | BN90: 9037.734046 | BO90: 8561.763901 | BP90: =(BP88+BP96*MIN(BP84,BP89))/((1+$C$17)^(BP72-2021)) -> 8110.74587 | BQ90: 7683.377367 | BR90: 7278.42354 | BS90: 6894.713766 | BT90: 6531.13832 | BU90: 6186.645217 | BV90: 5860.237221 | BW90: 5550.969006 | BX90: 5257.944463 | BY90: 4980.314145 | BZ90: 4717.27285 | CA90: 4468.057322 | CB90: 4231.944075 | CC90: 4008.247328 | CD90: 3796.31705 | CE90: 3595.537098 | CF90: 3405.323462
B91: NuSumma (kkr) | C91: =SUM(C90:CF90)/1000 -> 3660.955048 | D91: <-- Ska minimeras (använd Problemlösaren; minimera denna med hjälp av att ändra på pris 2019 i cell B18 under bivillkoret nedan)
B93: Diff önskade-faktiska utsläpp | C93: =SUM(C85:CD85)-SUM(C96:CD96) -> 377.96
B94: Diff önskade-total utsläpsrätter | C94: =SUM(C85:CF85)-C105 -> 0 | D94: <-- Ska vara noll (annars kommer totala (önskade) utsläpp skilja sig från total mängd utsläppsrätter och då blir även MC<>pris vid någon tidpunkt)
D95: =IF(AND(C96>0,D96=0),1,"") ->  | E95: =IF(AND(D96>0,E96=0),1,"") ->  | AF95: 1 | BQ95: =IF(AND(BP96>0,BQ96=0),1,"") -> 
B96: Utsläpp | C96: =IF(C82>C85,C85,C82) -> 1667.685392 | D96: 1636.069661 | E96: 1603.123144 | F96: 1568.779302 | G96: 1532.968267 | H96: 1495.61668 | I96: 1456.647514 | J96: 1415.97989 | K96: 1373.528884 | L96: 1329.205329 | M96: 1282.915595 | N96: 1234.561375 | O96: 1184.039443 | P96: 1131.241416 | Q96: 1076.053486 | R96: 1018.356161 | S96: 958.0239688 | T96: 894.9251672 | U96: 828.9214256 | V96: 759.8674969 | W96: 687.6108717 | X96: 569.7449068 | Y96: 426 | Z96: 359 | AA96: 292 | AB96: 225 | AC96: 158 | AD96: 91 | AE96: 24 | AF96: 0 | AG96: 0 | AH96: 0 | AI96: =IF(AI82>AI85,AI85,AI82) -> 0 | AJ96: 0 | AK96: 0 | AL96: 0 | AM96: 0 | AN96: 0 | AO96: 0 | AP96: 0 | AQ96: 0 | AR96: 0 | AS96: 0 | AT96: 0 | AU96: 0 | AV96: 0 | AW96: 0 | AX96: 0 | AY96: 0 | AZ96: 0 | BA96: 0 | BB96: 0 | BC96: 0 | BD96: 0 | BE96: 0 | BF96: 0 | BG96: 0 | BH96: 0 | BI96: 0 | BJ96: 0 | BK96: 0 | BL96: 0 | BM96: 0 | BN96: 0 | BO96: =IF(BO82>BO85,BO85,BO82) -> 0 | BP96: 0 | BQ96: 0 | BR96: 0 | BS96: 0 | BT96: 0 | BU96: 0 | BV96: 0 | BW96: 0 | BX96: 0 | BY96: 0 | BZ96: 0 | CA96: 0 | CB96: 0 | CC96: 0 | CD96: 0 | CE96: 0 | CF96: 0
B97: Utsläppsbroms | C97: =IF(C$57<=$C$23,IF($C$22<C73,$C$22,C73),0) -> 0 | D97: 0 | E97: 0 | F97: 0 | G97: 0 | H97: 0 | I97: 0 | J97: 0 | K97: 0 | L97: 0 | M97: 0 | N97: 0 | O97: 0 | P97: 0 | Q97: 0 | R97: 0 | S97: 0 | T97: 0 | U97: 0 | V97: 0 | W97: 0 | X97: 0 | Y97: 0 | Z97: 0 | AA97: 0 | AB97: 0 | AC97: 0 | AD97: 0 | AE97: 0 | AF97: 0 | AG97: 0 | AH97: 0 | AI97: =IF(AI$57<=$C$23,IF($C$22<AI73,$C$22,AI73),0) -> 0 | AJ97: 0 | AK97: 0 | AL97: 0 | AM97: 0 | AN97: 0 | AO97: 0 | AP97: 0 | AQ97: 0 | AR97: 0 | AS97: 0 | AT97: 0 | AU97: 0 | AV97: 0 | AW97: 0 | AX97: 0 | AY97: 0 | AZ97: 0 | BA97: 0 | BB97: 0 | BC97: 0 | BD97: 0 | BE97: 0 | BF97: 0 | BG97: 0 | BH97: 0 | BI97: 0 | BJ97: 0 | BK97: 0 | BL97: 0 | BM97: 0 | BN97: 0 | BO97: =IF(BO$57<=$C$23,IF($C$22<BO73,$C$22,BO73),0) -> 0 | BP97: 0 | BQ97: 0 | BR97: 0 | BS97: 0 | BT97: 0 | BU97: 0 | BV97: 0 | BW97: 0 | BX97: 0 | BY97: 0 | BZ97: 0 | CA97: 0 | CB97: 0 | CC97: 0 | CD97: 0 | CE97: 0 | CF97: 0
B98: Bank utsläppsbroms | C98: =C97-C99 -> 0 | D98: =D97-D99 -> 0 | E98: 0 | F98: 0 | G98: 0 | H98: 0 | I98: 0 | J98: 0 | K98: 0 | L98: 0 | M98: 0 | N98: 0 | O98: 0 | P98: 0 | Q98: 0 | R98: 0 | S98: 0 | T98: 0 | U98: 0 | V98: 0 | W98: 0 | X98: 0 | Y98: 0 | Z98: 0 | AA98: 0 | AB98: 0 | AC98: 0 | AD98: 0 | AE98: 0 | AF98: 0 | AG98: 0 | AH98: 0 | AI98: 0 | AJ98: 0 | AK98: 0 | AL98: 0 | AM98: 0 | AN98: 0 | AO98: 0 | AP98: 0 | AQ98: 0 | AR98: 0 | AS98: 0 | AT98: 0 | AU98: 0 | AV98: 0 | AW98: 0 | AX98: 0 | AY98: 0 | AZ98: 0 | BA98: 0 | BB98: 0 | BC98: 0 | BD98: 0 | BE98: 0 | BF98: 0 | BG98: 0 | BH98: 0 | BI98: 0 | BJ98: 0 | BK98: 0 | BL98: 0 | BM98: 0 | BN98: 0 | BO98: 0 | BP98: =BP97-BP99 -> 0 | BQ98: 0 | BR98: 0 | BS98: 0 | BT98: 0 | BU98: 0 | BV98: 0 | BW98: 0 | BX98: 0 | BY98: 0 | BZ98: 0 | CA98: 0 | CB98: 0 | CC98: 0 | CD98: 0 | CE98: =CE97-CE99 -> 0 | CF98: 0
B99: Annul bank utsläppsbr | C99: =C97 -> 0 | D99: =D97 -> 0 | E99: 0 | F99: 0 | G99: 0 | H99: 0 | I99: 0 | J99: 0 | K99: 0 | L99: 0 | M99: 0 | N99: 0 | O99: 0 | P99: 0 | Q99: 0 | R99: 0 | S99: 0 | T99: 0 | U99: 0 | V99: 0 | W99: 0 | X99: 0 | Y99: 0 | Z99: 0 | AA99: 0 | AB99: 0 | AC99: 0 | AD99: 0 | AE99: 0 | AF99: 0 | AG99: 0 | AH99: 0 | AI99: 0 | AJ99: 0 | AK99: 0 | AL99: 0 | AM99: 0 | AN99: 0 | AO99: 0 | AP99: 0 | AQ99: 0 | AR99: 0 | AS99: 0 | AT99: 0 | AU99: 0 | AV99: 0 | AW99: 0 | AX99: 0 | AY99: 0 | AZ99: 0 | BA99: 0 | BB99: 0 | BC99: 0 | BD99: 0 | BE99: 0 | BF99: 0 | BG99: 0 | BH99: 0 | BI99: 0 | BJ99: 0 | BK99: 0 | BL99: 0 | BM99: 0 | BN99: 0 | BO99: 0 | BP99: =BP97 -> 0 | BQ99: 0 | BR99: 0 | BS99: 0 | BT99: 0 | BU99: 0 | BV99: 0 | BW99: 0 | BX99: 0 | BY99: 0 | BZ99: 0 | CA99: 0 | CB99: 0 | CC99: 0 | CD99: 0 | CE99: =CE97 -> 0 | CF99: 0
B100: Att banka | C100: =C77+C78-C96-C97 -> -146.6453918 | D100: =D77+D78-D96-D97 -> -146.8347674 | E100: -145.6479063 | F100: -6.563933859 | G100: -36.96522688 | H100: -62.177813 | I100: -82.74730944 | J100: -99.15000802 | K100: -111.8010015 | L100: -32.20532857 | M100: -52.915595 | N100: -71.56137475 | O100: -88.03944349 | P100: -102.2414157 | Q100: -14.05348644 | R100: -23.35616077 | S100: -30.0239688 | T100: -33.92516724 | U100: -34.92142561 | V100: -52.86749689 | W100: -127.6108717 | X100: -76.7449068 | Y100: 0 | Z100: 0 | AA100: 0 | AB100: 0 | AC100: 0 | AD100: 0 | AE100: 0 | AF100: 0 | AG100: 0 | AH100: 0 | AI100: =AI77+AI78-AI96-AI97 -> 0 | AJ100: 0 | AK100: 0 | AL100: 0 | AM100: 0 | AN100: 0 | AO100: 0 | AP100: 0 | AQ100: 0 | AR100: 0 | AS100: 0 | AT100: 0 | AU100: 0 | AV100: 0 | AW100: 0 | AX100: 0 | AY100: 0 | AZ100: 0 | BA100: 0 | BB100: 0 | BC100: 0 | BD100: 0 | BE100: 0 | BF100: 0 | BG100: 0 | BH100: 0 | BI100: 0 | BJ100: 0 | BK100: 0 | BL100: 0 | BM100: 0 | BN100: 0 | BO100: =BO77+BO78-BO96-BO97 -> 0 | BP100: 0 | BQ100: 0 | BR100: 0 | BS100: 0 | BT100: 0 | BU100: 0 | BV100: 0 | BW100: 0 | BX100: 0 | BY100: 0 | BZ100: 0 | CA100: 0 | CB100: 0 | CC100: 0 | CD100: 0 | CE100: 0 | CF100: 0
B101: Totala utsläpp | C101: =SUM(C96:CF96) -> 28280.86538
B103: Total annullering | C103: =SUM(E81:CF81) -> 3418.174623
B105: Total utsläppsrätter | C105: =C3+C4+SUM(C74:CF74)+SUM(C78:CF78)-C103 -> 28658.82538
B107: Priselasticitet | C107: =IF(C96>0,-($H$14/C96)/(1/C84),"") -> -0.3191936625 | D107: -0.3416299145 | E107: -0.3660834525 | F107: -0.39280267 | G107: -0.4220777085 | H107: -0.4542496275 | I107: -0.4897221043 | J107: -0.5289765169 | K107: -0.5725916103 | L107: -0.621269456 | M107: -0.6758701885 | N107: -0.737459185 | O107: -0.8073722221 | P107: -0.8873071393 | Q107: -0.9794555074 | R107: -1.086696268 | S107: -1.212888267 | T107: -1.363326094 | U107: -1.545476489 | V107: -1.770219819 | W107: -2.054052934 | X107: -2.602934343 | Y107: -3.65530285 | Z107: -4.554364804 | AA107: -5.879341825 | AB107: -8.011583127 | AC107: -11.97934502 | AD107: -21.83926747 | AE107: -86.9475836 | AI107: =IF(AI96>0,-($H$14/AI96)/(1/AI84),"") ->  | BO107: =IF(BO96>0,-($H$14/BO96)/(1/BO84),"") -> 

Sheet Återskapa 2021_28
G2: Basfallet | K2: Brantare LRF i linje med FF55
G3: INPUT | K3: INPUT
G4: MSR 2021 | H4: 2600 | I4: milj ton | K4: MSR 2021 | L4: 2600 | M4: milj ton
G5: TNAC 2021 | H5: 1579 | I5: milj ton | K5: TNAC 2021 | L5: 1579 | M5: milj ton
G6: Auktion 2021 | H6: 1000 | I6: milj ton | K6: Auktion 2021 | L6: 1000 | M6: milj ton
G7: Linjär reduktion | H7: 35 | I7: milj ton | K7: Linjär reduktion | L7: 50 | M7: milj ton
G8: Gratistilldelning 2021 | H8: 900 | I8: milj ton | K8: Gratistilldelning 2021 | L8: 900 | M8: milj ton
G9: Linjär reduktion | H9: 32 | I9: milj ton/år | K9: Linjär reduktion | L9: 50 | M9: milj ton/år
G10: BAU årliga utsläpp 2021 | H10: 2200 | I10: milj ton | K10: BAU årliga utsläpp 2021 | L10: 2200 | M10: milj ton
G11: Minskar Linjärt | H11: 5 | I11: milj ton/år | K11: Minskar Linjärt | L11: 5 | M11: milj ton/år
G12: Minskar Procentuellt | H12: 0.005 | K12: Minskar Procentuellt | L12: 0.005
G13: Använd linjär (1) el. proc (0) | H13: 1 | K13: Använd linjär (1) el. proc (0) | L13: 1
G14: Temp BAU-tillägg | H14: 0 | I14: milj ton/år | K14: Temp BAU-tillägg | L14: 0 | M14: milj ton/år
G15: From när? | H15: 2021 | K15: From när? | L15: 2021
G16: Antal år | H16: 1 | K16: Antal år | L16: 1
G17: Prisbana | H17: 0.05 | K17: Prisbana | L17: 0.05
G18: Kalkylränta | H18: 0.05 | K18: Kalkylränta | L18: 0.05
G19: Pris 2021 | H19: 60 | I19: euro | K19: Pris 2021 | L19: 60 | M19: euro
G20: Betafaktor (1/priskänslighet) | H20: 0.11 | K20: Betafaktor (1/priskänslighet) | L20: 0.09
G21: Engångsminskning | H21: 0.1 | I21: milj ton | K21: Engångsminskning | L21: 0.1 | M21: milj ton
G22: När? | H22: 2019 | K22: När? | L22: 2019
G23: Utsläppsbroms | H23: 0 | K23: Utsläppsbroms | L23: 0
G24: Till när? | H24: 2028 | K24: Till när? | L24: 2028
G25: Smart annul (ja / nej) | H25: ja | K25: Smart annul (ja / nej) | L25: ja
G26: Gräns TNAC om ja | H26: 800 | K26: Gräns TNAC om ja | L26: 800
G27: Switchar gamla (alla = 1) eller nya systemet (alla = 0) | K27: Switchar gamla (alla = 1) eller nya systemet (alla = 0)
G28: 12% inmatning från 2023? (Ja=1) | H28: 1 | K28: 12% inmatning från 2023? (Ja=1) | L28: 1
G29: Föreg. aukt (1) eller 400 i MSR (0) | H29: 1 | K29: Föreg. aukt (1) eller 400 i MSR (0) | L29: 1
G30: Gamla (1) eller 1096-band (0) | H30: 1 | K30: Gamla (1) eller 1096-band (0) | L30: 1
